Workbook

Sheet Sheet1
E1: 8 | G1: 30 | I1: 90 | K1: 1 | M1: 2
B2: 系列 | C2: 本体长度 | E2: 工位数 | G2: 最小间距 | I2: 最大间距 | K2: 单工位负载 | L2: 电机安装方式 | M2: 变距方式 | N2: 传感器固定方式 | P2: 导程
D3: 总长（限制条件） | F3: 轴径 | H3: 导轨 | J3: 角度 | K3: 单工位负载 | L3: C | O3: 旋转圈数 | Q3: 理论壁厚（大于0） | R3: 扭矩
A4: 4 | B4: 40 | D4: 300 | E4: 3-8 | F4: 26 | G4: 6.5 | H4: 5 | K4: 1 | L4: H | O4: 0.9
A5: 5 | B5: 50 | D5: 260 | E5: 3-10 | F5: 26 | G5: 8 | K5: 0.5 | L5: L
A6: 3 | B6: 60 | D6: 450 | E6: 3-16 | F6: 26 | G6: 8.5、23 | H6: 5、7 | J6: =$AB$142 -> 0.4261019876 | K6: 1.5、5 | L6: R | Q6: =$Z$156 -> 6.310595128
A7: 7 | B7: 60S | D7: 600 | E7: 8-36 | F7: 34 | G7: 7 | H7: 5 | J7: =$AB$170 -> 0.5244299277 | K7: 1.5 | Q7: =$Z$182 -> 173.3333333
A8: 2 | B8: 80 | D8: 1500 | E8: 3-25 | F8: 34 | G8: 12.6 | H8: 7 | J8: =$AB$70 -> 0.5244299277 | K8: 5 | Q8: =$Z$93 -> 6.858010762
A9: 1 | B9: 80F | D9: 1500 | E9: 3-40 | F9: 38 | G9: 23、30 | H9: 7、9 | J9: =$AB$18 -> 0.5670235132 | K9: 5、10 | Q9: =$Z$33 -> 6.050428196
A10: 6 | B10: 80S | D10: 1500 | E10: 6-40 | F10: 38 | G10: 46 | H10: 15 | J10: =$AB$101 -> 0.5670235132 | K10: 20 | Q10: =$Z$114 -> 6.050428196
A11: 8 | B11: 130F | D11: 2500 | E11: 6-40 | F11: 44 | H11: 7、9、12 | J11: =$AB$193 -> 0.6233002749 | K11: 5、10、15 | Q11: =$Z$201 -> 7.51201466
A12: 9 | B12: 175F | D12: 2500 | E12: 8-45 | F12: 54 | H12: 9、12、15 | J12: =$AB$226 -> 0.7808594329 | K12: 10、15、20 | Q12: =$Z$234 -> 10.97040786
A13: 10 | B13: 230F | D13: 4000 | E13: 10-50 | F13: 69 | H13: 15 | J13: =$AB$258 -> 0.7808594329 | K13: 20 | Q13: =$Z$266 -> 10.97040786
A14: 11 | B14: SG350 | D14: 4000 | E14: 20-50 | H14: 12、15 | K14: 15、20
Y17: 80F
Y18: 导程1 | Z18: =($E$53-$D$53+2*Z57)*($C$53-1)/$I$53/$O$53 -> 173.3333333 | AA18: sin1 | AB18: =AD18/AF18 -> 0.5670235132 | AC18: 槽高 | AD18: =38*3.14 -> 119.32 | AE18: 斜边长 | AF18: =SQRT(Z19+AD19) -> 210.4321906
C19: 系列 | E19: 本体长度 | F19: 角度转换 | I19: 导轨 | K19: 长度条件 | L19: 负载1 | M19: 负载2 | N19: 轴径 | O19: SIN角度 | P19: 理论壁厚（大于0） | Y19: 导程1的平方 | Z19: =Z18^2 -> 30044.44444 | AA19: 导程的平方 | AC19: 槽高平方 | AD19: =AD18^2 -> 14237.2624 | AK19: =AD24-4-0.5 -> 535.5
Y20: 导程2 | Z20: =($E$53-$D$53+2*Z57)*($C$53-1-$I$53)/$I$53/$O$53 -> 115.5555556 | AA20: sin2 | AB20: =AD20/AF20 -> 0.7183476065 | AC20: 槽高 | AD20: =38*3.14 -> 119.32 | AE20: 斜边长 | AF20: =SQRT(Z21+AD21) -> 166.1034281
B21: 系列 | C21: 40 | D21: 本体长度 | E21: =$E$53*($C$53-1) -> 480 | F21: =DEGREES(ASIN(J4)) -> 0 | I21: ="MGNR5" -> MGNR5 | K21: =IF(D4>=E21,"A","") ->  | L21: =IF(1>=$G$53,"A") -> A | M21: =IF(1>=$G$53,"A") -> A | N21: 26 | O21: =IF(F21>=15,"A","") ->  | P21: =IF(Q4>=0,"A","") -> A | Y21: 导程2的平方 | Z21: =Z20^2 -> 13353.08642 | AA21: 导程的平方 | AC21: 槽高平方 | AD21: =AD20^2 -> 14237.2624 | AJ21: 重量 | AK21: =IF(AND($F$53="C",$J$53="W",$D$53>=29),(AD23*7.8*19*19*3.14/1000+4.754*AD24+89*C53+229+235+231.6+93+AK19*1.17)/1000,AK22) -> 9.20293324
B22: 系列 | C22: 50 | D22: 本体长度 | E22: 480 | F22: =DEGREES(ASIN(J5)) -> 0 | K22: =IF(D5>=E22,"A","") ->  | L22: =IF(0.5>=$G$53,"A") -> FALSE | M22: =IF(0.5>=$G$53,"A") -> FALSE | N22: 26 | O22: =IF(F22>=15,"A","") ->  | P22: =IF(Q5>=0,"A","") -> A | AJ22: 重量 | AK22: =IF(AND($F$53="C",$J$53="C",$D$53>=29),(AD23*7.8*19*19*3.14/1000+4.754*AD24+89*C53+229+235+231.6+AK19*1.17)/1000,AK23) -> 9.05593324
B23: 系列 | C23: 60 | D23: 本体长度 | E23: 480 | F23: 25.22043559 | I23: =IF($D$53>=22.6,"MGNR7","MGNR5") -> MGNR7 | K23: =IF(D6>=E23,"A","") ->  | L23: =IF(AND($G$53>1.5,5>=$G$53),"A") -> FALSE | M23: =IF(AND($G$53>1.5,5>=$G$53,I23="MGNR5"),"A") -> FALSE | N23: 26 | O23: A | P23: A | Y23: 理论壁厚 | Z23: =AB20*$D$53-10-5.5 -> 6.050428196 | AC23: 凸轮轴长 | AD23: =Z48 -> 520 | AF23: 销钉孔间距 | AG23: =IF(AD24<=300,100,AG24) -> 200 | AJ23: 重量 | AK23: =IF(AND($F$53="L",$J$53="W",$D$53>=29),(AD23*7.8*19*19*3.14/1000+4.754*AD24+89*C53+229+235+362.8+93+AK19*1.17)/1000,AK24) -> 9.05593324
B24: 系列 | C24: 60S | D24: 本体长度 | E24: 480 | F24: 31.62987419 | I24: ="MGNR5" -> MGNR5 | K24: A | L24: =IF(1.5>=$G$53,"A") -> A | M24: =IF(1.5>=$G$53,"A") -> A | N24: 34 | O24: A | P24: A | Y24: 理论壁厚 | Z24: =IF(Z23<=4.3,Z23+2,Z23) -> 6.050428196 | AC24: 型材长 | AD24: =AD23+20 -> 540 | AF24: 销钉孔间距 | AG24: =IF(AD24<=600,200,AG25) -> 200 | AJ24: 重量 | AK24: =IF(AND($F$53="R",$J$53="W",$D$53>=29),(AD23*7.8*19*19*3.14/1000+4.754*AD24+89*C53+229+235+362.8+93+AK19*1.17)/1000,AK25) -> 9.05593324
B25: 系列 | C25: 80 | D25: 本体长度 | E25: 480 | F25: 31.62987419 | I25: =IF($D$53<28.9,"MGNR7","MGNR9") -> MGNR9 | K25: A | L25: =IF(5>=$G$53,"A") -> A | M25: =IF(5>=$G$53,"A") -> A | N25: 34 | O25: A | P25: A | Y25: 理论壁厚 | Z25: =IF(Z24<=3.3,Z24+2,Z24) -> 6.050428196 | AC25: 总长 | AD25: =IF(AND($F$53="C",$J$53="W"),AD24+32+25+75,AD26) -> 672 | AF25: 销钉孔间距 | AG25: =IF(AD24<=800,400,AG26) -> 400 | AJ25: 重量 | AK25: =IF(AND($F$53="H",$J$53="W",$D$53>=29),(AD23*7.8*19*19*3.14/1000+4.754*AD24+89*C53+229+235+362.8+93+AK19*1.17)/1000,AK26) -> 9.05593324
B26: 系列 | C26: 80F | D26: 本体长度 | E26: 480 | F26: 34.54292599 | I26: =IF(B3>=29,"MGNR9","MGNR7") -> MGNR7 | K26: A | L26: =IF(AND($G$53>5,10>=$G$53),"A") -> FALSE | M26: =IF(AND($G$53>5,10>=$G$53,I26="MGNR7"),"A") -> FALSE | N26: 38 | O26: A | P26: A | Y26: 理论壁厚 | Z26: =IF(Z25>=1.8,Z25,#N/A) -> 6.050428196 | AC26: 总长 | AD26: =IF(AND($F$53="C",$J$53="C"),AD24+32+75,AD27) -> 612 | AF26: 销钉孔间距 | AG26: =IF(AD24<=1000,500,AG27) -> 500 | AJ26: 重量 | AK26: =IF(AND($F$53="L",$J$53="C",$D$53>=29),(AD23*7.8*19*19*3.14/1000+4.754*AD24+89*C53+229+235+362.8+AK19*1.17)/1000,AK27) -> 9.05593324
B27: 系列 | C27: 80S | D27: 本体长度 | E27: 480 | F27: 34.54292599 | I27: ="MGNR15" -> MGNR15 | K27: A | L27: =IF(20>=$G$53,"A") -> A | M27: =IF(20>=$G$53,"A") -> A | N27: 38 | O27: A | P27: A | Y27: 壁厚留余 | Z27: =IF(AB18>0.766,1,Z28) -> 1.5 | AC27: 总长 | AD27: =IF(AND($F$53="L",$J$53="W"),AD24+32+25+40,AD28) -> 612 | AF27: 销钉孔间距 | AG27: =IF(AD24<=1500,600,800) -> 600 | AJ27: 重量 | AK27: =IF(AND($F$53="R",$J$53="C",$D$53>=29),(AD23*7.8*19*19*3.14/1000+4.754*AD24+89*C53+229+235+362.8+AK19*1.17)/1000,AK28) -> 9.05593324
B28: 系列 | C28: 130F | D28: 本体长度 | E28: 480 | F28: 38.55754061 | I28: =$AG$202 -> MGNR9 | K28: A | L28: =IF(AND($G$53>5,15>=$G$53),"A") -> FALSE | M28: =IF(AND($G$53>5,15>=$G$53),"A") -> FALSE | N28: 44 | O28: A | P28: A | Y28: 壁厚留余 | Z28: =IF(AB18>0.5,1.5,Z29) -> 1.5 | AC28: 总长 | AD28: =IF(AND($F$53="R",$J$53="W"),AD24+32+25+40,AD29) -> 612 | AF28: 销钉孔间距 | AG28: =VLOOKUP(AF28,AF23:AG27,2,0) -> 200 | AJ28: 重量 | AK28: =IF(AND($F$53="H",$J$53="C",$D$53>=29),(AD23*7.8*19*19*3.14/1000+4.754*AD24+89*C53+229+235+362.8+AK19*1.17)/1000,AK29) -> 9.05593324
B29: 系列 | C29: 175F | D29: 本体长度 | E29: 480 | F29: 51.33933176 | I29: =$AH$233 -> MGNR9 | K29: A | L29: =IF(AND($G$53>10,20>=$G$53),"A") -> FALSE | M29: =IF(AND($G$53>10,20>=$G$53),"A") -> FALSE | N29: 54 | O29: A | P29: A | Y29: 壁厚留余 | Z29: =IF(AB18>0.342,2,Z30) -> 2 | AC29: 总长 | AD29: =IF(AND($F$53="H",$J$53="W"),AD24+32+25+40,AD24+32+40) -> 612 | AJ29: 重量 | AK29: =IF(AND($F$53="C",$J$53="W",$D$53>=22.6),(AD23*7.8*19*19*3.14/1000+4.754*AD24+68*C53+229+235+231.6+93+AK19*1.17)/1000,AK30) -> 9.05593324
B30: 系列 | C30: 230F | D30: 本体长度 | E30: 480 | F30: 51.33933176 | I30: ="MGNR15" -> MGNR15 | K30: A | L30: =IF(20>=$G$53,"A") -> A | M30: =IF(20>=$G$53,"A") -> A | N30: 69 | O30: A | P30: A | Y30: 壁厚留余 | Z30: =IF(AB18>0.259,3,Z31) -> 3 | AC30: 总长 | AD30: =VLOOKUP(AC30,AC25:AD29,2,0) -> 672 | AF30: ø5 | AG30: =CONCATENATE(AF30,AF31,AG28) -> ø5:200 | AJ30: 重量 | AK30: =IF(AND($F$53="C",$J$53="C",$D$53>=22.6),(AD23*7.8*19*19*3.14/1000+4.754*AD24+68*C53+229+235+231.6+AK19*1.17)/1000,AK31) -> 0
B31: 系列 | C31: SG350 | D31: 本体长度 | F31: 0 | K31: =IF(E31>=D14,"A","") ->  | L31: =IF(AND($G$53>15,20>=$G$53),"A") -> FALSE | M31: =IF(AND($G$53>15,20>=$G$53),"A") -> FALSE | N31: =IF(F31>=15,"A","") ->  | Y31: 壁厚留余 | Z31: =IF(AB18>0.208,5,#N/A) -> 5 | AC31: 总宽 | AD31: =IF($F$53="C",94,AD32) -> 94 | AF31: : | AJ31: 重量 | AK31: =IF(AND($F$53="L",$J$53="W",$D$53>=22.6),(AD23*7.8*19*19*3.14/1000+4.754*AD24+68*C53+229+235+362.8+93+AK19*1.17)/1000,AK32) -> 0
Y32: 壁厚留余 | Z32: =VLOOKUP(Y32,Y27:Z31,2,0) -> 1.5 | AC32: 总宽 | AD32: =IF($F$53="H",94,164) -> 164 | AJ32: 重量 | AK32: =IF(AND($F$53="R",$J$53="W",$D$53>=22.6),(AD23*7.8*19*19*3.14/1000+4.754*AD24+68*C53+229+235+362.8+93+AK19*1.17)/1000,AK33) -> 0
Y33: 理论壁厚 | Z33: =IF(Z32>Z26,#N/A,Z26) -> 6.050428196 | AC33: 总宽 | AD33: =VLOOKUP(AC33,AC31:AD32,2,0) -> 94 | AJ33: 重量 | AK33: =IF(AND($F$53="H",$J$53="W",$D$53>=22.6),(AD23*7.8*19*19*3.14/1000+4.754*AD24+68*C53+229+235+362.8+93+AK19*1.17)/1000,AK34) -> 0
A34: 符合三者条件的函数 | Y34: 不加余量轴长 | Z34: =$E$53*($C$53-1) -> 480 | AC34: 总高 | AD34: =IF(AND($D$53>=29,$F$53="H"),167.5,AD35) -> 80 | AF34: 型材固定螺母 | AG34: M6 | AH34: =_xlfn.IFS(AD24>=2001,"20",AD24>=1001,"16",AD24>=501,"10",AD24<501,"6") -> 10 | AI34: : | AJ34: 重量 | AK34: =IF(AND($F$53="L",$J$53="C",$D$53>=22.6),(AD23*7.8*19*19*3.14/1000+4.754*AD24+68*C53+229+235+362.8+AK19*1.17)/1000,AK35) -> 0
C35: 系列 | E35: 本体长度 | F35: 角度转换 | I35: 导轨 | K35: 长度条件 | L35: 负载1 | M35: 负载2 | N35: 轴径 | O35: SIN角度 | P35: 理论壁厚（大于0） | Y35: 轴长 | Z35: =IF(AND(Z34>=1201,$C$53>=17),Z34+30,Z36) -> 486 | AA35: 16.6 | AC35: 总高 | AD35: =IF(AND($D$53>=22.6,$F$53="H"),166,AD36) -> 80 | AF35: =CONCATENATE(AF34,AI34,AG34,AI34,AH34,AI34,AI37) -> 型材固定螺母:M6:10:48 | AJ35: 重量 | AK35: =IF(AND($F$53="R",$J$53="C",$D$53>=22.6),(AD23*7.8*19*19*3.14/1000+4.754*AD24+68*C53+229+235+362.8+AK19*1.17)/1000,AK36) -> 0
C36: 系列 | E36: 本体长度 | F36: 角度转换 | I36: 导轨 | K36: 长度条件 | L36: 负载1 | M36: 负载2 | N36: 轴径 | O36: SIN角度 | P36: 理论壁厚（大于0） | Y36: 轴长 | Z36: =IF(AND(Z34>=1201,$C$53<17),Z34+($C$53-1)*1.8,Z41) -> 486 | AC36: 总高 | AD36: =IF(AND($D$53>=29,$F$53="L"),80,AD37) -> 80 | AJ36: 重量 | AK36: =IF(AND($F$53="H",$J$53="C",$D$53>=22.6),(AD23*7.8*19*19*3.14/1000+4.754*AD24+68*C53+229+235+362.8+AK19*1.17)/1000,AK37) -> 0
C37: 60S | E37: 480 | F37: 36.0512136 | I37: MGNR5 | K37: A | L37: A | M37: A | N37: 34 | O37: A | P37: A | R37: 长度条件 | S37: 负载1 | T37: 负载2 | U37: 轴径 | V37: SIN角度 | W37: 理论壁厚（大于0） | Y37: 轴长 | Z37: =IF(AND(Z34>=801,$C$53>=19),Z30+30,Z38) -> 486 | AA37: 18.75 | AC37: 总高 | AD37: =IF(AND($D$53>=29,$F$53="R"),80,AD38) -> 80 | AI37: 48
C38: 80 | E38: 480 | F38: 36.0512136 | I38: MGNR9 | K38: A | L38: A | M38: A | N38: 34 | O38: A | P38: A | R38: A | S38: A | T38: A | V38: A | W38: A | Y38: 轴长 | Z38: =IF(AND(Z34>=801,$C$53<19),Z34+($C$53-1)*1.6,Z39) -> 486 | AC38: 总高 | AD38: =IF(AND($D$53>=29,$F$53="C"),80,78.5) -> 80 | AJ38: 重量 | AK38: =VLOOKUP(AJ38,AJ21:AK36,2,0) -> 9.20293324
C39: 80S | E39: 480 | F39: 39.12992145 | I39: MGNR15 | K39: A | L39: A | M39: A | N39: 38 | O39: A | P39: A | Y39: 轴长 | Z39: =IF(AND(Z34>=501,$C$53>=20),Z31+30,Z40) -> 486 | AA39: 20 | AC39: 总高 | AD39: =VLOOKUP(AC39,AC34:AD38,2,0) -> 80
C40: 230F | E40: 480 | F40: 55.90420365 | I40: MGNR15 | K40: A | L40: A | M40: A | N40: 69 | O40: A | P40: A | Y40: 轴长 | Z40: =IF(AND(Z34>=501,$C$53<20),Z34+($C$53-1)*1.5,Z41) -> 486
Y41: 轴长 | Z41: =IF(AND(Z32>=301,$C$53>=30),Z32+30,Z42) -> 486 | AA41: 30
Y42: 轴长 | Z42: =IF(AND(Z34>=301,$C$53<30),Z34+($C$53-1)*1,Z43) -> 486
Y43: 轴长 | Z43: =IF(AND(Z34<=300,$C$53>=60),Z33+30,Z44) -> 0 | AA43: 60
Y44: 轴长 | Z44: =IF(AND(Z34<=300,$C$53<60),Z34+0.5*($C$53-1),0) -> 0
Y45: 轴长 | Z45: =VLOOKUP(Y45,Y35:Z44,2,0) -> 486
Y46: 轴长 | Z46: =IF($D$53>=40,Z45+46,Z47) -> 520
Y47: 轴长 | Z47: =IF($D$53>=29,Z45+34,Z45+28) -> 520
Y48: 轴长 | Z48: =VLOOKUP(Y48,Y46:Z47,2,0) -> 520
Y50: 槽宽 | Z50: =IF(Z23>=3.3,"8",Z51) -> 8
Y51: 槽宽 | Z51: =IF(Z23>=1.8,"6",#N/A) -> 6
C52: 工位数 | D52: 最小间距 填写不含余量的间距 | E52: 最大间距 填写不含余量的间距 | F52: 电机安装方式 只填写大写字母：L R C H | G52: 单工位负载 （KG） | H52: 电机 伺服S/步进B | I52: 变距方式 单边1双边2 | J52: 传感器固定方式 (侧装C尾部W) | K52: =IF($I$53=1,"单边边距（电机在动端D不动端B）","") ->  | O52: 旋转圈数 | Y52: 槽宽 | Z52: =VLOOKUP(Y52,Y50:Z51,2,0) -> 8
A53: 输入数据 | B53: 输入数据 | C53: 7 | D53: 30 | E53: 80 | F53: C | G53: 1 | H53: B | I53: 2 | J53: W | O53: 0.9 | Y53: 余量 | Z53: =IF(Z34<=300,"0.5",Z54) -> 1
Y54: 余量 | Z54: =IF(Z34<=500,"1",Z55) -> 1
Y55: 余量 | Z55: =IF(Z34<=800,"1.5",Z56) -> 1.5
Y56: 余量 | Z56: =IF(Z34<=1200,"2","4") -> 2
C57: 顺序 | D57: 系列 | E57: 本体长度 | F57: 总长（限制条件） | G57: 最小工位数 | H57: 最大工位数 | I57: 轴径 | J57: 最小间距 | K57: 导轨 | L57: 滑块 | M57: 最大间距 | N57: 角度 | O57: 单工位负载 | P57: 电机安装方式 | Q57: 变距方式 | R57: 传感器固定方式 | S57: 旋转圈数 | T57: 导程 | U57: 理论壁厚（大于0） | V57: 扭矩 | Y57: 余量 | Z57: =VLOOKUP(Y57,Y53:Z56,2,0) -> 1
C58: 1 | D58: 80F | E58: =($C$53-1)*$E$53 -> 480 | F58: 1500 | G58: 3 | H58: 40 | I58: 38 | J58: 23 | K58: MGNR7 | L58: MGN7 | N58: =$AB$18 -> 0.5670235132 | O58: 5 | Q58: 1 | U58: 40.02038992 | AB58: CL80F | AC58: - | AD58: =$C$53 -> 7 | AE58: - | AF58: =$D$53 -> 30 | AG58: - | AH58: =$E$53 -> 80 | AI58: - | AJ58: =$F$53 -> C | AK58: =IF($I$53=1,"-","") ->  | AL58: =IF($I$53=1,$K$53,"") ->  | AM58: =IF($I$53=1,"-","") ->  | AN58: =IF($I$53=1,$J$53,"") -> 
J59: 30 | K59: MGNR9 | L59: MGN9C | O59: 10 | Q59: 2 | Y59: 角度力矩 | Z59: =IF(AB18>=0.765,0.2,Z60) -> 0.3 | AB59: =CONCATENATE(AB58,AC58,AD58,AE58,AF58,AG58,AH58,AI58,AJ58,AK58,AL58,AM58,AN58) -> CL80F-7-30-80-C
J60: 40 | K60: MGNR9 | L60: MGN9H | O60: 10 | Y60: 角度力矩 | Z60: =IF(AB18>=0.566,0.3,Z61) -> 0.3
C61: 2 | D61: 80 | E61: =($C$53-1)*$E$53 -> 480 | F61: 1500 | G61: 3 | H61: 25 | I61: 34 | J61: 12.6 | K61: MGNR7 | L61: MGN7 | N61: =$AB$70 -> 0.5244299277 | O61: 5 | U61: =$Z$93 -> 6.858010762 | Y61: 角度力矩 | Z61: =IF(AB18>=0.307,0.5,0.9) -> 0.5
C62: 3 | D62: 60 | E62: =($C$53-1)*$E$53 -> 480 | F62: 450 | G62: 3 | H62: 16 | I62: 26 | J62: 8.5 | K62: MGNR5 | L62: MGN5 | N62: =$AB$142 -> 0.4261019876 | O62: 1.5 | U62: =$Z$156 -> 6.310595128 | Y62: 角度力矩 | Z62: =VLOOKUP(Y62,Y59:Z61,2,0) -> 0.3
J63: 23 | K63: MGNR7 | L63: MGN7 | O63: 5 | Y63: 静态扭矩 | Z63: 0.65
C64: 4 | D64: 40 | F64: 300 | G64: 3 | H64: 8 | I64: 26 | J64: 6.5 | K64: MGNR5 | L64: MGN5 | O64: 1 | Y64: 扭矩 | Z64: =0.1*Z62*$G$53*$C$53+Z63 -> 0.86
C65: 5 | D65: 50 | E65: =($C$53-1)*$E$53 -> 480 | F65: 260 | G65: 3 | H65: 10 | I65: 26 | J65: 8 | K65: MGNR5 | L65: MGN5 | O65: 0.5 | Y65: =IF(MOD($C$53,2),"奇数","偶数") -> 奇数 | Z65: =IF(Y65="奇数",($C$53-1)/2,($C$53-1)/2) -> 3
C66: 6 | D66: 80S | F66: 1500 | G66: 6 | H66: 40 | I66: 38 | J66: 46 | K66: MGNR15 | L66: MGN15 | N66: =$AB$101 -> 0.5670235132 | O66: 20 | U66: =$Z$114 -> 6.050428196 | Y66: 导程 | Z66: =IF($I$53=2,($E$53-$D$53)*Z65/$O$53,($E$53-$D$53)*($C$53-1)/$O$53) -> 166.6666667
C67: 7 | D67: 60S | E67: =($C$53-1)*$E$53 -> 480 | F67: 600 | G67: 8 | H67: 36 | I67: 34 | J67: 7 | K67: MGNR5 | L67: MGN5 | N67: =$AB$170 -> 0.5244299277 | O67: 1.5 | U67: =$Z$182 -> 173.3333333
C68: 8 | D68: 130F | E68: =($C$53-1)*$E$53 -> 480 | F68: 2500 | G68: 6 | H68: 40 | I68: 44 | J68: 23 | K68: MGNR7 | L68: MGN7 | N68: =$AB$193 -> 0.6233002749 | O68: 5 | U68: =$Z$201 -> 7.51201466
J69: 30 | K69: MGNR9 | L69: MGN9C | O69: 10 | Y69: 80
J70: 40 | K70: MGNR9 | L70: MGN9H | O70: 10 | Y70: 导程1 | Z70: =($E$53-$D$53+2*Z85)*($C$53-1)/$I$53/$O$53 -> 173.3333333 | AA70: sin1 | AB70: =AD70/AF70 -> 0.5244299277 | AC70: 槽高 | AD70: =34*3.14 -> 106.76 | AE70: 斜边长 | AF70: =SQRT(Z71+AD71) -> 203.5734316 | AH70: CL80 | AI70: - | AJ70: =$C$53 -> 7 | AK70: - | AL70: =$D$53 -> 30 | AM70: - | AN70: =$E$53 -> 80 | AO70: - | AP70: =$F$53 -> C | AQ70: =IF($I$53=1,"-","") ->  | AR70: =IF($I$53=1,$K$53,"") ->  | AS70: =IF($I$53=1,"-","") ->  | AT70: =IF($I$53=1,$J$53,"") -> 
J71: 35 | K71: MGNR12 | L71: MGN12C | O71: 15 | Y71: 导程1的平方 | Z71: =Z70^2 -> 30044.44444 | AA71: 导程的平方 | AC71: 槽高平方 | AD71: =AD70^2 -> 11397.6976 | AH71: =CONCATENATE(AH70,AI70,AJ70,AK70,AL70,AM70,AN70,AO70,AP70,AQ70,AR70,AS70,AT70) -> CL80-7-30-80-C
J72: 46 | K72: MGNR12 | L72: MGN12H | O72: 15 | Y72: 导程2 | Z72: =($E$53-$D$53+2*Z85)*($C$53-1-$I$53)/$I$53/$O$53 -> 115.5555556 | AA72: sin2 | AB72: =AD72/AF72 -> 0.6786003587 | AC72: 槽高 | AD72: =34*3.14 -> 106.76 | AE72: 斜边长 | AF72: =SQRT(Z73+AD73) -> 157.323819
C73: 9 | D73: 175F | E73: =($C$53-1)*$E$53 -> 480 | F73: 2500 | G73: 8 | H73: 45 | I73: 54 | J73: 30 | K73: MGNR9 | L73: MGN9C | N73: =$AB$226 -> 0.7808594329 | O73: 10 | U73: =$Z$234 -> 10.97040786 | Y73: 导程2的平方 | Z73: =Z72^2 -> 13353.08642 | AA73: 导程的平方 | AC73: 槽高平方 | AD73: =AD72^2 -> 11397.6976
J74: 40 | K74: MGNR9 | L74: MGN9H | O74: 10 | AK74: 重量 | AL74: =IF(AND($D$53>=29,$F$53="C",$J$53="W"),122.8+$AD$75*7.8*19*19*3.14/1000+$AD$76*4.75+204+207+81.1*$C$53+205.3+26.3+93,AL75) -> 8588.73824 | AN74: 29 | AP74: 22.6 | AR74: 12.6
J75: 35 | K75: MGNR12 | L75: MGN12C | O75: 15 | Y75: 理论壁厚 | Z75: =AB72*$D$53-8-5.5 -> 6.858010762 | AC75: 凸轮轴长 | AD75: =Z86 -> 520 | AG75: 销钉孔间距 | AH75: =IF(AD76<=300,100,AH76) -> 200 | AK75: 重量 | AL75: =IF(AND($D$53>=22.6,$F$53="C",$J$53="W"),122.8+$AD$75*7.8*19*19*3.14/1000+$AD$76*4.75+204+207+63.6*$C$53+205.3+26.3+93,AL76) -> 8466.23824 | AM75: 重量 | AN75: =IF(AND($D$53>=29,$F$53="C",$J$53="W"),122.8+$AD$75*7.8*19*19*3.14/1000+$AD$76*4.75+204+207+81.1*$C$53+205.3+26.3+93,AN76) -> 8588.73824 | AO75: 重量 | AP75: =IF(AND($D$53>=22.6,$F$53="C",$J$53="W"),122.8+$AD$75*7.8*19*19*3.14/1000+$AD$76*4.75+204+207+63.6*$C$53+205.3+26.3+93,AP76) -> 8466.23824 | AQ75: 重量 | AR75: =IF(AND($D$53>=12.6,$F$53="C",$J$53="W"),122.8+$AD$75*7.8*17*17*3.14/1000+$AD$76*4.95+204+207+31.1*$C$53+205.3+26.3+93,AR76) -> 7429.75776
J76: 46 | K76: MGNR12 | L76: MGN12H | O76: 15 | Y76: 理论壁厚 | Z76: =IF(Z75<=3.3,Z75+2,Z75) -> 6.858010762 | AC76: 型材长 | AD76: =AD75+20 -> 540 | AG76: 销钉孔间距 | AH76: =IF(AD76<=600,200,AH77) -> 200 | AK76: 重量 | AL76: =IF(AND($D$53>=12.6,$F$53="C",$J$53="W"),122.8+$AD$75*7.8*17*17*3.14/1000+$AD$76*4.95+204+207+31.1*$C$53+205.3+26.3+93,AL77) -> 7429.75776 | AM76: 重量 | AN76: =IF(AND($D$53>=29,$F$53="C",$J$53="C"),116+$AD$75*7.8*19*19*3.14/1000+$AD$76*4.75+204+209+81.1*$C$53+205.3+26.3+93,AN77) -> 8720.86 | AO76: 重量 | AP76: =IF(AND($D$53>=22.6,$F$53="C",$J$53="C"),116+$AD$75*7.8*19*19*3.14/1000+$AD$76*4.75+204+207+63.6*$C$53+205.3+26.3+93,AP77) -> 8720.86 | AQ76: 重量 | AR76: =IF(AND($D$53>=12.6,$F$53="C",$J$53="C"),116+$AD$75*7.8*17*17*3.14/1000+$AD$76*4.95+204+207+31.1*$C$53+205.3+26.3+93,AR77) -> 8720.86
J77: 45 | K77: MGNR15 | L77: MGN15C | O77: 20 | Y77: 理论壁厚 | Z77: =IF(Z76<=1.8,Z76+1,Z76) -> 6.858010762 | AD77: 总长 | AE77: =IF(AND($F$53="C",$J$53="W"),AD76+32+25+75,AE78) -> 672 | AG77: 销钉孔间距 | AH77: =IF(AD76<=800,400,AH78) -> 400 | AK77: 重量 | AL77: =IF(AND($D$53>=29,$F$53="C",$J$53="C"),116+$AD$75*7.8*19*19*3.14/1000+$AD$76*4.75+204+209+81.1*$C$53+205.3+26.3+93,AL78) -> 8720.86 | AM77: 重量 | AN77: =IF(AND($D$53>=29,,$F$53="L",$J$53="W"),122.8+$AD$75*7.8*19*19*3.14/1000+$AD$76*4.75+204+207+81.1*$C$53+166.8+196+93,AN78) -> 8720.86 | AO77: 重量 | AP77: =IF(AND($D$53>=22.6,,$F$53="L",$J$53="W"),122.8+$AD$75*7.8*19*19*3.14/1000+$AD$76*4.75+204+207+63.6*$C$53+166.8+196+93,AP78) -> 8720.86 | AQ77: 重量 | AR77: =IF(AND($D$53>=12.6,,$F$53="L",$J$53="W"),122.8+$AD$75*7.8*17*17*3.14/1000+$AD$76*4.95+204+207+31.1*$C$53+166.8+196+93,AR78) -> 8720.86
J78: 62 | K78: MGNR15 | L78: MGN15H | Y78: 理论壁厚 | Z78: =IF(Z77<=1.3,#N/A,Z77) -> 6.858010762 | AD78: 总长 | AE78: =IF(AND($F$53="C",$J$53="C"),AD76+32+75,AE79) -> 72 | AG78: 销钉孔间距 | AH78: =IF(AD76<=1000,500,AH79) -> 500 | AK78: 重量 | AL78: =IF(AND($D$53>=22.6,$F$53="C",$J$53="C"),116+$AD$75*7.8*19*19*3.14/1000+$AD$76*4.75+204+207+63.6*$C$53+205.3+26.3+93,AL79) -> 8720.86 | AM78: 重量 | AN78: =IF(AND($D$53>=29,,$F$53="L",$J$53="C"),116+$AD$75*7.8*19*19*3.14/1000+$AD$76*4.75+204+209+81.1*$C$53+166.8+196+93,AN79) -> 8720.86 | AO78: 重量 | AP78: =IF(AND($D$53>=22.6,,$F$5="L",$J$53="C"),116+$AD$75*7.8*19*19*3.14/1000+$AD$76*4.75+204+209+63.6*$C$53+166.8+196+93,AP79) -> 8720.86 | AQ78: 重量 | AR78: =IF(AND($D$53>=12.6,,$F$53="L",$J$53="C"),116+$AD$75*7.8*17*17*3.14/1000+$AD$76*4.95+204+209+31.1*$C$53+166.8+196+93,AR79) -> 8720.86
C79: 10 | D79: 230F | E79: =($C$53-1)*$E$53 -> 480 | F79: 4000 | G79: 10 | H79: 50 | I79: 69 | J79: 45 | K79: MGNR15C | L79: MGN15C | N79: =$AB$258 -> 0.7808594329 | Y79: 理论壁厚 | Z79: =VLOOKUP(Y79,Y77:Z78,2,0) -> 6.858010762 | AD79: 总长 | AE79: =IF(AND($F$53="L",$J$53="W"),AD76+32+25+40,AE80) -> 72 | AG79: 销钉孔间距 | AH79: =IF(AD76<=1500,600,800) -> 600 | AK79: 重量 | AL79: =IF(AND($D$53>=12.6,$F$53="C",$J$53="C"),116+$AD$75*7.8*17*17*3.14/1000+$AD$76*4.95+204+207+31.1*$C$53+205.3+26.3+93,AL80) -> 8720.86 | AM79: 重量 | AN79: =IF(AND($D$53>=29,,$F$53="R",$J$53="W"),122.8+$AD$75*7.8*19*19*3.14/1000+$AD$76*4.75+204+207+81.1*$C$53+166.8+196+93,AN80) -> 8720.86 | AO79: 重量 | AP79: =IF(AND($D$53>=22.6,,$F$53="R",$J$53="W"),122.8+$AD$75*7.8*19*19*3.14/1000+$AD$76*4.75+204+207+63.6*$C$53+166.8+196+93,AP80) -> 8720.86 | AQ79: 重量 | AR79: =IF(AND($D$53>=12.6,,$F$53="R",$J$53="W"),122.8+$AD$75*7.8*17*17*3.14/1000+$AD$76*4.95+204+207+31.1*$C$53+166.8+196+93,AR80) -> 8720.86
J80: 62 | K80: MGNR15 | L80: MGN15H | O80: 20 | U80: =$Z$266 -> 10.97040786 | Y80: 不含余量长度 | Z80: =($C$53-1)*$E$53 -> 480 | AD80: 总长 | AE80: =IF(AND($F$53="R",$J$53="W"),AD76+32+25+40,AE81) -> 72 | AG80: 销钉孔间距 | AH80: =VLOOKUP(AG80,AG75:AH79,2,0) -> 200 | AK80: 重量 | AL80: =IF(AND($D$53>=29,,$F$53="L",$J$53="W"),122.8+$AD$75*7.8*19*19*3.14/1000+$AD$76*4.75+204+207+81.1*$C$53+166.8+196+93,AL81) -> 8720.86 | AM80: 重量 | AN80: =IF(AND($D$53>=29,,$F$53="R",$J$53="C"),116+$AD$75*7.8*19*19*3.14/1000+$AD$76*4.75+204+209+81.1*$C$53+166.8+196+93,AN81) -> 8720.86 | AO80: 重量 | AP80: =IF(AND($D$53>=22.6,,$F$53="R",$J$53="C"),116+$AD$75*7.8*19*19*3.14/1000+$AD$76*4.75+204+209+63.6*$C$53+166.8+196+93,AP81) -> 8720.86 | AQ80: 重量 | AR80: =IF(AND($D$53>=12.6,,$F$53="R",$J$53="C"),116+$AD$75*7.8*17*17*3.14/1000+$AD$76*4.95+204+209+31.1*$C$53+166.8+196+93,AR81) -> 8720.86
Y81: 留余量 | Z81: =IF(Z80<=300,0.5,Z82) -> 1 | AD81: 总长 | AE81: =IF(AND($F$53="H",$J$53="W"),AD76+32+25+40,X31+32+40) -> 72 | AG81: ø5 | AH81: =CONCATENATE(AG81,AG82,AH80) -> ø5:200 | AK81: 重量 | AL81: =IF(AND($D$53>=22.6,,$F$53="L",$J$53="W"),122.8+$AD$75*7.8*19*19*3.14/1000+$AD$76*4.75+204+207+63.6*$C$53+166.8+196+93,AL82) -> 8720.86 | AM81: 重量 | AN81: =IF(AND($D$53>=29,,$F$53="H",$J$53="W"),122.8+$AD$75*7.8*19*19*3.14/1000+$AD$76*4.75+204+207+81.1*$C$53+166.8+196+93,AN82) -> 8720.86 | AO81: 重量 | AP81: =IF(AND($D$53>=22.6,,$F$53="H",$J$53="W"),122.8+$AD$75*7.8*19*19*3.14/1000+$AD$76*4.75+204+207+63.6*$C$53+166.8+196+93,AP82) -> 8720.86 | AQ81: 重量 | AR81: =IF(AND($D$53>=12.6,,$F$53="H",$J$53="W"),122.8+$AD$75*7.8*17*17*3.14/1000+$AD$76*4.95+204+207+31.1*$C$53+166.8+196+93,AR82) -> 8720.86
Y82: 留余量 | Z82: =IF(Z80<=500,1,Z83) -> 1 | AD82: 总长 | AE82: =VLOOKUP(AD82,AD77:AE81,2,0) -> 672 | AG82: : | AK82: 重量 | AL82: =IF(AND($D$53>=12.6,,$F$53="L",$J$53="W"),122.8+$AD$75*7.8*17*17*3.14/1000+$AD$76*4.95+204+207+31.1*$C$53+166.8+196+93,AL83) -> 8720.86 | AM82: 重量 | AN82: =IF(AND($D$53>=22.6,$F$53="H",$J$53="C"),116+$AD$75*7.8*19*19*3.14/1000+$AD$76*4.75+204+209+63.6*$C$53+166.8+196+93,116+$AD$75*9.318+$AD$76*4.95+204+209+31.1*$C$53+166.8+196+93) -> 8720.86 | AO82: 重量 | AP82: =IF(AND($D$53>=22.6,$F$53="H",$J$53="C"),116+$AD$75*7.8*19*19*3.14/1000+$AD$76*4.75+204+209+63.6*$C$53+166.8+196+93,116+$AD$75*9.318+$AD$76*4.95+204+209+31.1*$C$53+166.8+196+93) -> 8720.86 | AQ82: 重量 | AR82: =IF(AND($D$53>=22.6,$F$53="H",$J$53="C"),116+$AD$75*7.8*19*19*3.14/1000+$AD$76*4.75+204+209+63.6*$C$53+166.8+196+93,116+$AD$75*9.318+$AD$76*4.95+204+209+31.1*$C$53+166.8+196+93) -> 8720.86
Y83: 留余量 | Z83: =IF(Z80<=800,1.5,Z84) -> 1.5 | AD83: 总宽 | AE83: =IF($F$53="C",80,AE84) -> 80 | AK83: 重量 | AL83: =IF(AND($D$53>=29,,$F$53="L",$J$53="C"),116+$AD$75*7.8*19*19*3.14/1000+$AD$76*4.75+204+209+81.1*$C$53+166.8+196+93,AL84) -> 8720.86 | AM83: 重量 | AN83: =VLOOKUP(AM83,AM75:AN82,2,0) -> 8588.73824 | AO83: 重量 | AP83: 8466.23824 | AQ83: 重量 | AR83: 7429.75776
Y84: 留余量 | Z84: =IF(Z80<=1200,2,4) -> 2 | AD84: 总宽 | AE84: =IF($F$53="H",80,157) -> 157 | AG84: 型材固定螺母 | AH84: M6 | AI84: =_xlfn.IFS(AD76>=2001,"20",AD76>=1001,"16",AD76>=501,"10",AD76<501,"6") -> 10 | AJ84: : | AK84: 重量 | AL84: =IF(AND($D$53>=22.6,,$F$5="L",$J$53="C"),116+$AD$75*7.8*19*19*3.14/1000+$AD$76*4.75+204+209+63.6*$C$53+166.8+196+93,AL85) -> 8720.86 | AN84: =AN83/1000 -> 8.58873824 | AP84: 8.46623824 | AR84: 7.42975776
Y85: 留余量 | Z85: =VLOOKUP(Y85,Y81:Z84,2,0) -> 1 | AD85: 总宽 | AE85: =VLOOKUP(AD85,AD83:AE84,2,0) -> 80 | AG85: =CONCATENATE(AG84,AJ84,AH84,AJ84,AI84,AJ84,AJ87) -> 型材固定螺母:M6:10:48 | AK85: 重量 | AL85: =IF(AND($D$53>=12.6,,$F$53="L",$J$53="C"),116+$AD$75*7.8*17*17*3.14/1000+$AD$76*4.95+204+209+31.1*$C$53+166.8+196+93,AL86) -> 8720.86
Y86: 凸轮轴长度 | Z86: =Z80+Z94+2*Z95 -> 520 | AD86: 总高 | AE86: =IF(AND($D$53>=29,$F$53="H"),160.5,AE87) -> 73 | AK86: 重量 | AL86: =IF(AND($D$53>=29,,$F$53="R",$J$53="W"),122.8+$AD$75*7.8*19*19*3.14/1000+$AD$76*4.75+204+207+81.1*$C$53+166.8+196+93,AL87) -> 8720.86
Y87: 壁厚留余 | Z87: =IF(Z70>0.766,1,Z88) -> 1 | AD87: 总高 | AE87: =IF(AND($D$53>=12.5,$F$53="H"),159,AE88) -> 73 | AJ87: 48 | AK87: 重量 | AL87: =IF(AND($D$53>=22.6,,$F$53="R",$J$53="W"),122.8+$AD$75*7.8*19*19*3.14/1000+$AD$76*4.75+204+207+63.6*$C$53+166.8+196+93,AL88) -> 8720.86
Y88: 壁厚留余 | Z88: =IF(Z70>0.5,1.5,Z89) -> 1.5 | AD88: 总高 | AE88: =IF(AND($D$53>=29,$F$53="L"),73,AE89) -> 73 | AK88: 重量 | AL88: =IF(AND($D$53>=12.6,,$F$53="R",$J$53="W"),122.8+$AD$75*7.8*17*17*3.14/1000+$AD$76*4.95+204+207+31.1*$C$53+166.8+196+93,AL89) -> 8720.86
Y89: 壁厚留余 | Z89: =IF(Z70>0.342,2,Z90) -> 2 | AD89: 总高 | AE89: =IF(AND($D$53>=29,$F$53="R"),73,AE90) -> 73 | AK89: 重量 | AL89: =IF(AND($D$53>=29,,$F$53="R",$J$53="C"),116+$AD$75*7.8*19*19*3.14/1000+$AD$76*4.75+204+209+81.1*$C$53+166.8+196+93,AL90) -> 8720.86
Y90: 壁厚留余 | Z90: =IF(Z70>0.259,3,Z91) -> 3 | AD90: 总高 | AE90: =IF(AND($D$53>=29,$F$53="C"),73,71.5) -> 73 | AK90: 重量 | AL90: =IF(AND($D$53>=22.6,,$F$53="R",$J$53="C"),116+$AD$75*7.8*19*19*3.14/1000+$AD$76*4.75+204+209+63.6*$C$53+166.8+196+93,AL91) -> 8720.86
Y91: 壁厚留余 | Z91: =IF(Z70>=0.208,5,#N/A) -> 5 | AD91: 总高 | AE91: =VLOOKUP(AD91,AD86:AE90,2,0) -> 73 | AK91: 重量 | AL91: =IF(AND($D$53>=12.6,,$F$53="R",$J$53="C"),116+$AD$75*7.8*17*17*3.14/1000+$AD$76*4.95+204+209+31.1*$C$53+166.8+196+93,AL92) -> 8720.86
Y92: 壁厚留余 | Z92: =VLOOKUP(Y92,Y87:Z91,2,0) -> 1 | AB92: 角度力矩 | AC92: =IF(AB70>=0.765,0.2,AC93) -> 0.5 | AK92: 重量 | AL92: =IF(AND($D$53>=29,,$F$53="H",$J$53="W"),122.8+$AD$75*7.8*19*19*3.14/1000+$AD$76*4.75+204+207+81.1*$C$53+166.8+196+93,AL93) -> 8720.86
Y93: 理论壁厚 | Z93: =IF(Z92>Z79,#N/A,Z79) -> 6.858010762 | AB93: 角度力矩 | AC93: =IF(AB70>=0.566,0.3,AC94) -> 0.5 | AK93: 重量 | AL93: =IF(AND($D$53>=22.6,,$F$53="H",$J$53="W"),122.8+$AD$75*7.8*19*19*3.14/1000+$AD$76*4.75+204+207+63.6*$C$53+166.8+196+93,AL94) -> 8720.86
Y94: =($C$53-1)*Z85 -> 6 | Z94: =IF(Y94>=30,30,Y94) -> 6 | AB94: 角度力矩 | AC94: =IF(AB70>=0.307,0.5,0.9) -> 0.5 | AK94: 重量 | AL94: =IF(AND($D$53>=12.6,,$F$53="H",$J$53="W"),122.8+$AD$75*7.8*17*17*3.14/1000+$AD$76*4.95+204+207+31.1*$C$53+166.8+196+93,AL95) -> 8720.86
Y95: 两侧留余 | Z95: =IF($D$53>28.9,17,14) -> 17 | AB95: 角度力矩 | AC95: =VLOOKUP(AB95,AB92:AC94,2,0) -> 0.5 | AK95: 重量 | AL95: =IF(AND($D$53>=29,,$F$53="H",$J$53="C"),116+$AD$75*7.8*19*19*3.14/1000+$AD$76*4.75+204+209+81.1*$C$53+166.8+196+93,AL96) -> 8720.86
Y96: =IF(MOD($C$53,2),"奇数","偶数") -> 奇数 | Z96: =IF(Y96="奇数",($C$53-1)/2,($C$53-1)/2) -> 3 | AB96: 静态扭矩 | AC96: 0.65 | AK96: 重量 | AL96: =IF(AND($D$53>=22.6,$F$53="H",$J$53="C"),116+$AD$75*7.8*19*19*3.14/1000+$AD$76*4.75+204+209+63.6*$C$53+166.8+196+93,116+$AD$75*9.318+$AD$76*4.95+204+209+31.1*$C$53+166.8+196+93) -> 8720.86
Y97: 导程 | Z97: =IF($I$53=2,($E$53-$D$53)*Z96/$O$53,($E$53-$D$53)*($C$53-1)/$O$53) -> 166.6666667 | AB97: 扭矩 | AC97: =0.1*AC95*$G$53*$C$53+AC96 -> 1 | AK97: 重量 | AL97: =VLOOKUP(AK97,AK74:AL96,2,0) -> 8588.73824
AK98: 重量 | AL98: =AL97/1000 -> 8.58873824
Y100: 80S
Y101: 导程1 | Z101: =($E$53-$D$53+2*Z120)*($C$53-1)/$I$53/$O$53 -> 173.3333333 | AA101: sin1 | AB101: =AD101/AF101 -> 0.5670235132 | AC101: 槽高 | AD101: =38*3.14 -> 119.32 | AE101: 斜边长 | AF101: =SQRT(Z102+AD102) -> 210.4321906 | AH101: CL80S | AI101: - | AJ101: =$C$53 -> 7 | AK101: - | AL101: =$D$53 -> 30 | AM101: - | AN101: =$E$53 -> 80 | AO101: - | AP101: =$F$53 -> C | AQ101: =IF($I$53=1,"-","") ->  | AR101: =IF($I$53=1,$K$53,"") ->  | AS101: =IF($I$53=1,"-","") ->  | AT101: =IF($I$53=1,$J$53,"") -> 
Y102: 导程1的平方 | Z102: =Z101^2 -> 30044.44444 | AA102: 导程的平方 | AC102: 槽高平方 | AD102: =AD101^2 -> 14237.2624 | AH102: =CONCATENATE(AH101,AI101,AJ101,AK101,AL101,AM101,AN101,AO101,AP101,AQ101,AR101,AS101,AT101) -> CL80S-7-30-80-C
Y103: 导程2 | Z103: =($E$53-$D$53+2*Z120)*($C$53-1-$I$53)/$I$53/$O$53 -> 115.5555556 | AA103: sin2 | AB103: =AD103/AF103 -> 0.7183476065 | AC103: 槽高 | AD103: =38*3.14 -> 119.32 | AE103: 斜边长 | AF103: =SQRT(Z104+AD104) -> 166.1034281
Y104: 导程2的平方 | Z104: =Z103^2 -> 13353.08642 | AA104: 导程的平方 | AC104: 槽高平方 | AD104: =AD103^2 -> 14237.2624
Y107: 理论壁厚 | Z107: =AB103*$D$53-10-5.5 -> 6.050428196 | AA107: =IF(Z107>=4,Z107,Z107+2) -> 6.050428196 | AC107: 凸轮轴长 | AD107: =AB131 -> 532 | AF107: 销钉孔间距 | AG107: =IF(AD108<=300,100,AG108) -> 200 | AJ107: 重量 | AK107: =IF(AND($F$53="C",$J$53="W"),(AD107*7.8*19*19*3.14/1000+4.622*AD108+205+209+151*$C$53+231.6+93)/1000,AK108) -> 9.050681584
Y108: 壁厚留余 | Z108: =IF(AB101>0.766,1,Z109) -> 1.5 | AC108: 型材长 | AD108: =AD107+20 -> 552 | AF108: 销钉孔间距 | AG108: =IF(AD108<=600,200,AG109) -> 200 | AJ108: 重量 | AK108: =IF(AND($F$53="C",$J$53="C"),(AD107*7.8*19*19*3.14/1000+4.622*AD108+205+209+151*$C$53+231.6)/1000,AK109) -> 8.031881584
Y109: 壁厚留余 | Z109: =IF(AB101>0.5,1.5,Z110) -> 1.5 | AC109: 总长 | AD109: =IF(AND($F$53="C",$J$53="W"),AD108+32+25+75,AD110) -> 684 | AF109: 销钉孔间距 | AG109: =IF(AD108<=800,400,AG110) -> 400 | AJ109: 重量 | AK109: =IF(AND($F$53="L",$J$53="W"),(AD107*7.8*19*19*3.14/1000+4.622*AD108+205+209+151*$C$53+362.8+93)/1000,AK110) -> 8.031881584
Y110: 壁厚留余 | Z110: =IF(AB101>0.342,2,Z111) -> 2 | AC110: 总长 | AD110: =IF(AND($F$53="C",$J$53="C"),AD108+32+75,AD111) -> 624 | AF110: 销钉孔间距 | AG110: =IF(AD108<=1000,500,AG111) -> 500 | AJ110: 重量 | AK110: =IF(AND($F$53="R",$J$53="W"),(AD107*7.8*19*19*3.14/1000+4.622*AD108+205+209+151*$C$53+362.8+93)/1000,AK111) -> 8.031881584
Y111: 壁厚留余 | Z111: =IF(AB101>0.259,3,Z112) -> 3 | AC111: 总长 | AD111: =IF(AND($F$53="L",$J$53="W"),AD108+32+25+40,AD112) -> 624 | AF111: 销钉孔间距 | AG111: =IF(AD108<=1500,600,800) -> 600 | AJ111: 重量 | AK111: =IF(AND($F$53="H",$J$53="W"),(AD107*7.8*19*19*3.14/1000+4.622*AD108+205+209+151*$C$53+362.8+93)/1000,(AD107*7.8*19*19*3.14/1000+4.622*AD108+205+209+151*AC83+362.8)/1000) -> 8.031881584
Y112: 壁厚留余 | Z112: =IF(AB101>0.208,5,#N/A) -> 5 | AC112: 总长 | AD112: =IF(AND($F$53="R",$J$53="W"),AD108+32+25+40,AD113) -> 624 | AF112: 销钉孔间距 | AG112: =VLOOKUP(AF112,AF107:AG111,2,0) -> 200 | AJ112: 重量 | AK112: =VLOOKUP(AJ112,AJ107:AK111,2,0) -> 9.050681584
Y113: 壁厚留余 | Z113: =VLOOKUP(Y113,Y108:Z112,2,0) -> 1.5 | AC113: 总长 | AD113: =IF(AND($F$53="H",$J$53="W"),AD108+32+25+40,AD108+32+40) -> 624 | AF113: ø5 | AG113: =CONCATENATE(AF113,AF114,AG112) -> ø5:200
Y114: 理论壁厚 | Z114: =IF(Z113>Z107,#N/A,Z107) -> 6.050428196 | AC114: 总长 | AD114: =VLOOKUP(AC114,AC109:AD113,2,0) -> 684 | AF114: :
Y115: 不留余量的轴长 | Z115: =($C$53-1)*$E$53 -> 480 | AC115: 总宽 | AD115: =IF($F$53="C",90,AD116) -> 90
Y116: 余量 | Z116: =IF(Z115<=300,"0.5",Z117) -> 1 | AC116: 总宽 | AD116: =IF($F$53="H",90,157) -> 157 | AF116: 型材固定螺母 | AG116: M6 | AH116: =_xlfn.IFS(AD108>=2001,"20",AD108>=1001,"16",AD108>=501,"10",AD108<501,"6") -> 10 | AI116: : | AJ116: 48
Y117: 余量 | Z117: =IF(Z115<=500,"1",Z118) -> 1 | AC117: 总宽 | AD117: =VLOOKUP(AC117,AC115:AD116,2,0) -> 90 | AF117: =CONCATENATE(AF116,AI116,AG116,AI116,AH116,AI116,AJ116) -> 型材固定螺母:M6:10:48
Y118: 余量 | Z118: =IF(Z115<=800,"1.5",Z119) -> 1.5 | AC118: 总高 | AD118: =IF($F$53="H",166,78.5) -> 78.5
Y119: 余量 | Z119: =IF(Z115<=1200,"2",4) -> 2
Y120: 余量 | Z120: =VLOOKUP(Y120,Y116:Z119,2,0) -> 1
Y121: 留余后轴长 | Z121: =IF(AND(Z115<=300,$C$53>=60),Z115+30,Z122) -> 486
Y122: 留余后轴长 | Z122: =IF(AND(Z115<=300,$C$53<60),Z115+($C$53-1)*0.5,Z123) -> 486
Y123: 留余后轴长 | Z123: =IF(AND(Z115<=500,$C$53>=30),Z115+30,Z124) -> 486
Y124: 留余后轴长 | Z124: =IF(AND(Z115<=500,$C$53<30),Z115+($C$53-1)*1,Z125) -> 486
Y125: 留余后轴长 | Z125: =IF(AND(Z115<=800,$C$53>=20),Z115+30,Z126) -> 489
Y126: 留余后轴长 | Z126: =IF(AND(Z115<=800,$C$53<20),Z115+($C$53-1)*1.5,Z127) -> 489
Y127: 留余后轴长 | Z127: =IF(AND(Z115<=1200,$C$53>=15),Z115+30,Z128) -> 492
Y128: 留余后轴长 | Z128: =IF(AND(Z115<=1200,$C$53<15),Z115+($C$53-1)*2,Z129) -> 492
Y129: 留余后轴长 | Z129: =IF(AND(Z115>1200,$C$53>=14),Z115+30,Z130) -> 486
Y130: 留余后轴长 | Z130: =IF(AND(Z115>1200,$C$53<14),Z115+($C$53-1)*2.1,Z131) -> 486
Y131: 留余后轴长 | Z131: =VLOOKUP(Y131,Y121:Z130,2,0) -> 486 | AA131: 轴长 | AB131: =Z131+46 -> 532
Y132: =IF(MOD($C$53,2),"奇数","偶数") -> 奇数 | Z132: =IF(Y132="奇数",($C$53-1)/2,($C$53-1)/2) -> 3
Y133: 导程 | Z133: =IF($I$53=2,($E$53-$D$53)*Z132/$O$53,($E$53-$D$53)*($C$53-1)/$O$53) -> 166.6666667
Y134: 角度力矩 | Z134: =IF(AB101>=0.765,0.2,Z135) -> 0.3
Y135: 角度力矩 | Z135: =IF(AB101>=0.566,0.3,Z136) -> 0.3
Y136: 角度力矩 | Z136: =IF(AB101>=0.307,0.5,0.9) -> 0.5
Y137: 角度力矩 | Z137: =VLOOKUP(Y137,Y134:Z136,2,0) -> 0.3
Y138: 静态扭矩 | Z138: 0.65
Y139: 扭矩 | Z139: =0.1*Z137*$G$53*$C$53+Z138 -> 0.86
Y141: 60 | AM141: 23 | AO141: 16.1 | AQ141: 8.5 | AS141: CL60 | AT141: - | AU141: =$C$53 -> 7 | AV141: - | AW141: =$D$53 -> 30 | AX141: - | AY141: =$E$53 -> 80 | AZ141: - | BA141: =$F$53 -> C | BB141: =IF($I$53=1,"-","") ->  | BC141: =IF($I$53=1,$K$53,"") ->  | BD141: =IF($I$53=1,"-","") ->  | BE141: =IF($I$53=1,$J$53,"") -> 
Y142: 导程1 | Z142: =($E$53-$D$53+2*Z158)*($C$53-1)/$I$53/$O$53 -> 173.3333333 | AA142: sin1 | AB142: =AD142/AF142 -> 0.4261019876 | AC142: 槽高 | AD142: =26*3.14 -> 81.64 | AE142: 斜边长 | AF142: =SQRT(Z143+AD143) -> 191.5973226 | AJ142: 重量 | AK142: =IF(AND($D$53>=23,$F$53="C",$J$53="C"),($AE$147*7.8*13*13*3.14/1000+$AE$148*2.15+$C$53*31+87+71+57)/1000,AK143) -> 3.622398036 | AL142: 重量 | AM142: =IF(AND($D$53>=22.6,$F$53="C",$J$53="C"),($AE$147*7.8*13*13*3.14/1000+$AE$148*2.15+$C$53*31+87+71+57)/1000,AM143) -> 3.622398036 | AN142: 重量 | AO142: =IF(AND($D$53>=16.1,$F$53="C",$J$53="C"),($AE$147*7.8*13*13*3.14/1000+$AE$148*2.15+$C$53*25+87+71+57)/1000,AO143) -> 3.667398036 | AP142: 重量 | AQ142: =IF(AND($D$53>=8.5,$F$53="C",$J$53="C"),($AE$147*7.8*13*13*3.14/1000+$AE$148*2.15+$C$53*11.45+87+71+57)/1000,AQ143) -> 3.651748036 | AS142: =CONCATENATE(AS141,AT141,AU141,AV141,AW141,AX141,AY141,AZ141,BA141,BB141,BC141,BD141,BE141) -> CL60-7-30-80-C
Y143: 导程1的平方 | Z143: =Z142^2 -> 30044.44444 | AA143: 导程的平方 | AC143: 槽高平方 | AD143: =AD142^2 -> 6665.0896 | AJ143: 重量 | AK143: =IF(AND($D$53>=16.1,$F$53="C",$J$53="C"),($AE$147*7.8*13*13*3.14/1000+$AE$148*2.15+$C$53*25+87+71+57)/1000,AK144) -> 3.622398036 | AL143: 重量 | AM143: =IF(AND($D$53>=22.6,$F$53="C",$J$53="W"),($AE$147*7.8*13*13*3.14/1000+$AE$148*2.15+$C$53*31+71+57+54.4)/1000,AM144) -> 3.622398036 | AN143: 重量 | AO143: =IF(AND($D$53>=16.1,$F$53="C",$J$53="W"),($AE$147*7.8*13*13*3.14/1000+$AE$148*2.15+$C$53*25+87+71+57+54.4)/1000,AO144) -> 3.667398036 | AP143: 重量 | AQ143: =IF(AND($D$53>=8.5,$F$53="C",$J$53="C"),($AE$147*7.8*13*13*3.14/1000+$AE$148*2.15+$C$53*11.45+87+71+57)/1000,AQ144) -> 3.651748036
Y144: 导程2 | Z144: =($E$53-$D$53+2*Z158)*($C$53-1-$I$53)/$I$53/$O$53 -> 115.5555556 | AA144: sin2 | AB144: =AD144/AF144 -> 0.5770198376 | AC144: 槽高 | AD144: =26*3.14 -> 81.64 | AE144: 斜边长 | AF144: =SQRT(Z145+AD145) -> 141.4856036 | AJ144: 重量 | AK144: =IF(AND($D$53>=8.5,$F$53="C",$J$53="C"),($AE$147*7.8*13*13*3.14/1000+$AE$148*2.15+$C$53*11.45+87+71+57)/1000,AK145) -> 3.622398036 | AL144: 重量 | AM144: =IF(AND($D$53>=22.6,$F$53="C",$J$53="W"),($AE$147*7.8*13*13*3.14/1000+$AE$148*2.15+$C$53*31+87+71+94.3+54.4)/1000,AM145) -> 3.746698036 | AN144: 重量 | AO144: =IF(AND($D$53>=16.1,$F$53="C",$J$53="W"),($AE$147*7.8*13*13*3.14/1000+$AE$148*2.15+$C$53*25+87+71+96.3+94.3+54.4)/1000,AO145) -> 3.800998036 | AP144: 重量 | AQ144: =IF(AND($D$53>=8.5,$F$53="L",$J$53="W"),($AE$147*7.8*13*13*3.14/1000+$AE$148*2.15+$C$53*11.45+87+71+96.3+94.3+54.4)/1000,AQ145) -> 3.651748036
Y145: 导程2的平方 | Z145: =Z144^2 -> 13353.08642 | AA145: 导程的平方 | AC145: 槽高平方 | AD145: =AD144^2 -> 6665.0896 | AJ145: 重量 | AK145: =IF(AND($D$53>=22.6,$F$53="C",$J$53="W"),($AE$147*7.8*13*13*3.14/1000+$AE$148*2.15+$C$53*31+71+57+54.4)/1000,AK146) -> 3.622398036 | AL145: 重量 | AM145: =IF(AND($D$53>=22.6,$F$53="R",$J$53="W"),($AE$147*7.8*13*13*3.14/1000+$AE$148*2.15+$C$53*31+87+71+94.3+96.3+54.4)/1000,AM146) -> 3.622398036 | AN145: 重量 | AO145: =IF(AND($D$53>=16.1,$F$53="R",$J$53="W"),($AE$147*7.8*13*13*3.14/1000+$AE$148*2.15+$C$53*25+87+71+94.3+96.3+54.4)/1000,AO146) -> 0.3486 | AP145: 重量 | AQ145: =IF(AND($D$53>=8.5,$F$53="R",$J$53="W"),($AE$147*7.8*13*13*3.14/1000+$AE$148*2.15+$C$53*11.45+87+71+96.3+94.3+54.4)/1000,AQ146) -> 3.651748036
AJ146: 重量 | AK146: =IF(AND($D$53>=16.1,$F$53="C",$J$53="W"),($AE$147*7.8*13*13*3.14/1000+$AE$148*2.15+$C$53*25+87+71+57+54.4)/1000,AK147) -> 3.667398036 | AL146: 重量 | AM146: =IF(AND($D$53>=22.6,$F$53="H",$J$53="W"),($AE$147*7.8*13*13*3.14/1000+$AE$148*2.15+$C$53*31+87+71+94.3+96.3+54.4)/1000,AM147) -> 3.622398036 | AN146: 重量 | AO146: =IF(AND($D$53>=16.1,$F$53="H",$J$53="W"),($AE$147*7.8*13*13*3.14/1000+$AE$148*2.15+$C$53*25+87+71+96.3+94.3+54.4)/1000,AO147) -> 0.3486 | AP146: 重量 | AQ146: =IF(AND($D$53>=8.5,$F$53="R",$J$53="W"),($AE$147*7.8*13*13*3.14/1000+$AE$148*2.15+$C$53*11.45+87+71+96.3+94.3+54.4)/1000,AQ147) -> 3.651748036
Y147: 理论壁厚 | Z147: =AB144*$D$53-6-5 -> 6.310595128 | AD147: 凸轮轴长 | AE147: =Z164 -> 507 | AG147: 销钉孔间距 | AH147: =IF(AE148>=401,200,AH148) -> 200 | AJ147: 重量 | AK147: =IF(AND($D$53>=8.5,$F$53="C",$J$53="C"),($AE$147*7.8*13*13*3.14/1000+$AE$148*2.15+$C$53*11.45+87+71+57)/1000,AK148) -> 3.746698036 | AL147: 重量 | AM147: =IF(AND($D$53>=22.6,$F$53="L",$J$53="C"),($AE$147*7.8*13*13*3.14/1000+$AE$148*2.15+$C$53*31+87+71+96.3+94.3)/1000,AM148) -> 3.622398036 | AN147: 重量 | AO147: =IF(AND($D$53>=16.1,$F$53="L",$J$53="C"),($AE$147*7.8*13*13*3.14/1000+$AE$148*2.15+$C$53*25+87+71+96.3+94.3)/1000,AO148) -> 0.3486 | AP147: 重量 | AQ147: =IF(AND($D$53>=8.5,$F$53="L",$J$53="C"),($AE$147*7.8*13*13*3.14/1000+$AE$148*2.15+$C$53*11.45+87+71+96.3+94.3)/1000,AQ148) -> 3.651748036
Y148: 理论壁厚 | Z148: =IF(Z147<=1.8,Z147+1,Z147) -> 6.310595128 | AD148: 型材长 | AE148: =AE147+16 -> 523 | AG148: 销钉孔间距 | AH148: =IF(AE148>=201,150,AH149) -> 150 | AJ148: 重量 | AK148: =IF(AND($D$53>=22.6,$F$53="C",$J$53="W"),($AE$147*7.8*13*13*3.14/1000+$AE$148*2.15+$C$53*31+87+71+94.3+54.4)/1000,AK149) -> 3.746698036 | AL148: 重量 | AM148: =IF(AND($D$53>=22.6,$F$53="R",$J$53="C"),($AE$147*7.8*13*13*3.14/1000+$AE$148*2.15+$C$53*31+87+71+96.3+94.3)/1000,AM149) -> 3.622398036 | AN148: 重量 | AO148: =IF(AND($D$53>=16.1,$F$53="R",$J$53="C"),($AE$147*7.8*13*13*3.14/1000+$AE$148*2.15+$C$53*25+87+71+96.3+94.3)/1000,AO149) -> 0.3486 | AP148: 重量 | AQ148: =IF(AND($D$53>=8.5,$F$53="R",$J$53="C"),($AE$147*7.8*13*13*3.14/1000+$AE$148*2.15+$C$53*11.45+87+71+96.3+94.3)/1000,AQ149) -> 3.651748036
Y149: 理论壁厚 | Z149: =IF(Z148<=1.3,#N/A,Z148) -> 6.310595128 | AD149: 支柱长度 | AE149: =IF(AC162>=0.32,55,50) -> 55 | AG149: 销钉孔间距 | AH149: =IF(AE148>=101,70,50) -> 70 | AJ149: 重量 | AK149: =IF(AND($D$53>=16.1,$F$53="C",$J$53="W"),($AE$147*7.8*13*13*3.14/1000+$AE$148*2.15+$C$53*25+87+71+96.3+94.3+54.4)/1000,AK150) -> 3.800998036 | AL149: 重量 | AM149: =IF(AND($D$53>=22.6,$F$53="H",$J$53="C"),($AE$147*7.8*13*13*3.14/1000+$AE$148*2.15+$C$53*31+87+71+96.3+94.3)/1000,AM150) -> 3.622398036 | AN149: 重量 | AO149: =IF(AND($D$53>=16.1,$F$53="H",$J$53="C"),($AE$147*7.8*13*13*3.14/1000+$AE$148*2.15+$C$53*25+87+71+96.3+94.3)/1000,(AH96*7.8*13*13*3.14/1000+AH97*2.15+AG101*11.45+87+71+96.3+94.3)/1000) -> 0.3486 | AP149: 重量 | AQ149: =IF(AND($D$53>=8.5,$F$53="H",$J$53="C"),($AE$147*7.8*13*13*3.14/1000+$AE$148*2.15+$C$53*11.45+87+71+96.3+94.3)/1000,($AE$147*7.8*13*13*3.14/1000+$AE$148*2.15+$C$53*11.45+87+71+96.3+94.3)/1000) -> 3.651748036
Y150: 壁厚留余 | Z150: =IF(AB142>0.766,1,Z151) -> 2 | AD150: 支柱长度 | AE150: =IF($H$53="S",AE149,45) -> 45 | AG150: 销钉孔间距 | AH150: =VLOOKUP(AG150,AG147:AH149,2,0) -> 200 | AJ150: 重量 | AK150: =IF(AND($D$53>=8.5,$F$53="L",$J$53="W"),($AE$147*7.8*13*13*3.14/1000+$AE$148*2.15+$C$53*11.45+87+71+96.3+94.3+54.4)/1000,AK151) ->  | AL150: 重量 | AM150: =VLOOKUP(AL150,AL142:AM149,2,0) -> 3.622398036 | AN150: 重量 | AO150: =VLOOKUP(AN150,AN127:AO149,2,0) -> 3.667398036 | AP150: 重量 | AQ150: =VLOOKUP(AP150,AP142:AQ149,2,0) -> 3.651748036
Y151: 壁厚留余 | Z151: =IF(AB142>0.5,1.5,Z152) -> 2 | AD151: 总长 | AE151: =IF(AND($F$53="C",$J$53="W"),AE148+23+20+10+AE150,AE152) -> 621 | AG151: ø4 | AH151: =CONCATENATE(AG151,AG152,AH150) -> ø4:200 | AJ151: 重量 | AK151: =IF(AND($D$53>=22.6,$F$53="R",$J$53="W"),($AE$147*7.8*13*13*3.14/1000+$AE$148*2.15+$C$53*31+87+71+94.3+96.3+54.4)/1000,AK152) -> 
Y152: 壁厚留余 | Z152: =IF(AB142>0.342,2,Z153) -> 2 | AD152: 总长 | AE152: =IF(AND($F$53="C",$J$53="C"),AE148+23+10+AE153,AE153) -> 571 | AG152: : | AJ152: 重量 | AK152: =IF(AND($D$53>=16.1,$F$53="R",$J$53="W"),($AE$147*7.8*13*13*3.14/1000+$AE$148*2.15+$C$53*25+87+71+94.3+96.3+54.4)/1000,AK153) -> 
Y153: 壁厚留余 | Z153: =IF(AB142>0.259,3,Z154) -> 3 | AD153: 总长 | AE153: =IF(AND($F$53="L",$J$53="W"),AE148+23+20+25,AE154) -> 571 | AJ153: 重量 | AK153: =IF(AND($D$53>=8.5,$F$53="R",$J$53="W"),($AE$147*7.8*13*13*3.14/1000+$AE$148*2.15+$C$53*11.45+87+71+96.3+94.3+54.4)/1000,AK154) -> 
Y154: 壁厚留余 | Z154: =IF(AB142>0.208,5,#N/A) -> 5 | AD154: 总长 | AE154: =IF(AND($F$53="R",$J$53="W"),AE148+23+20+25,AE155) -> 571 | AG154: 螺纹孔 | AH154: M4 | AI154: =IF(AE148>=400,"8",IF(200<AE148<400,"6",IF(AE148<=200,"4"))) -> 8 | AJ154: 重量 | AK154: =IF(AND($D$53>=22.6,$F$53="H",$J$53="W"),($AE$147*7.8*13*13*3.14/1000+$AE$148*2.15+$C$53*31+87+71+94.3+96.3+54.4)/1000,AK155) -> 
Y155: 壁厚留余 | Z155: =VLOOKUP(Y155,Y150:Z154,2,0) -> 2 | AD155: 总长 | AE155: =IF(AND($F$53="H",$J$53="W"),AE148+23+20+25,AE148+23+25) -> 571 | AG155: =CONCATENATE(AG154,AG152,AH154,AG152,AI154,AG152,AI158) -> 螺纹孔:M4:8:40 | AJ155: 重量 | AK155: =IF(AND($D$53>=16.1,$F$53="H",$J$53="W"),($AE$147*7.8*13*13*3.14/1000+$AE$148*2.15+$C$53*25+87+71+96.3+94.3+54.4)/1000,AK156) -> 
Y156: 理论壁厚 | Z156: =IF(Z155>Z149,#N/A,Z149) -> 6.310595128 | AD156: 总长 | AE156: =VLOOKUP(AD156,AD151:AE155,2,0) -> 621 | AJ156: 重量 | AK156: =IF(AND($D$53>=8.5,$F$53="R",$J$53="W"),($AE$147*7.8*13*13*3.14/1000+$AE$148*2.15+$C$53*11.45+87+71+96.3+94.3+54.4)/1000,AK157) -> 
Y157: 轴长不加余量 | Z157: =$E$53*($C$53-1) -> 480 | AB157: 角度力矩 | AC157: =IF(AB142>=0.965,0.1,AC158) -> 0.5 | AD157: 总宽 | AE157: =IF($F$53="C",60,AE158) -> 60 | AJ157: 重量 | AK157: =IF(AND($D$53>=22.6,$F$53="L",$J$53="C"),($AE$147*7.8*13*13*3.14/1000+$AE$148*2.15+$C$53*31+87+71+96.3+94.3)/1000,AK158) -> 
Y158: 余量 | Z158: =IF(Z157>=301,1,0.5) -> 1 | AB158: 角度力矩 | AC158: =IF(AB142>=0.866,0.16,AC159) -> 0.5 | AD158: 总宽 | AE158: =IF($F$53="H",60,151) -> 151 | AI158: 40 | AJ158: 重量 | AK158: =IF(AND($D$53>=16.1,$F$53="L",$J$53="C"),($AE$147*7.8*13*13*3.14/1000+$AE$148*2.15+$C$53*25+87+71+96.3+94.3)/1000,AK159) -> 
Y159: 轴长 | Z159: =IF(AND(Z157>=301,$C$53>=30),Z157+30,Z160) -> 479 | AB159: 角度力矩 | AC159: =IF(AB142>=0.707,0.28,0.5) -> 0.5 | AD159: 总宽 | AE159: =VLOOKUP(AD159,AD157:AE158,2,0) -> 60 | AJ159: 重量 | AK159: =IF(AND($D$53>=8.5,$F$53="L",$J$53="C"),($AE$147*7.8*13*13*3.14/1000+$AE$148*2.15+$C$53*11.45+87+71+96.3+94.3)/1000,AK160) -> 
Y160: 轴长 | Z160: =IF(AND(Z157>=301,$C$53<30),Z157+1*($O$5338-1),Z161) -> 479 | AB160: 角度力矩 | AC160: =VLOOKUP(AB160,AB157:AC159,2,0) -> 0.5 | AD160: 总高 | AE160: =IF($F$53="H",107.5,54) -> 54 | AJ160: 重量 | AK160: =IF(AND($D$53>=22.6,$F$53="R",$J$53="C"),($AE$147*7.8*13*13*3.14/1000+$AE$148*2.15+$C$53*31+87+71+96.3+94.3)/1000,AK161) -> 
Y161: 轴长 | Z161: =IF(AND(Z157<301,$C$53>=60),Z157+30,Z162) -> 479 | AB161: 静态扭矩 | AC161: 0.15 | AJ161: 重量 | AK161: =IF(AND($D$53>=16.1,$F$53="R",$J$53="C"),($AE$147*7.8*13*13*3.14/1000+$AE$148*2.15+$C$53*25+87+71+96.3+94.3)/1000,AK162) -> 
Y162: 轴长 | Z162: =IF(AND(Z157<301,$C$53<60),Z157+($O$5338-1)*0.5,Z163) -> 479 | AB162: 扭矩 | AC162: =0.1*AC160*$G$53*$C$53+AC161 -> 0.5 | AJ162: 重量 | AK162: =IF(AND($D$53>=8.5,$F$53="R",$J$53="C"),($AE$147*7.8*13*13*3.14/1000+$AE$148*2.15+$C$53*11.45+87+71+96.3+94.3)/1000,AK163) -> 
Y163: 轴长 | Z163: =VLOOKUP(Y163,Y159:Z162,2,0) -> 479 | AJ163: 重量 | AK163: =IF(AND($D$53>=22.6,$F$53="H",$J$53="C"),($AE$147*7.8*13*13*3.14/1000+$AE$148*2.15+$C$53*31+87+71+96.3+94.3)/1000,AK164) -> 
Y164: 轴长 | Z164: =IF($D$53>=22.6,Z163+28,Z163+22) -> 507 | AJ164: 重量 | AK164: =IF(AND($D$53>=16.1,$F$53="H",$J$53="C"),($AE$147*7.8*13*13*3.14/1000+$AE$148*2.15+$C$53*25+87+71+96.3+94.3)/1000,(AD111*7.8*13*13*3.14/1000+AD112*2.15+AC116*11.45+87+71+96.3+94.3)/1000) -> 
Y165: =IF(MOD($C$53,2),"奇数","偶数") -> 奇数 | Z165: =IF(Y165="奇数",($C$53-1)/2,($C$53-1)/2) -> 3 | AJ165: 重量 | AK165: =VLOOKUP(AJ165,AJ142:AK164,2,0) -> 3.622398036
Y166: 导程 | Z166: =IF($I$53=2,($E$53-$D$53)*Z165/$O$53,($E$53-$D$53)*($C$53-1)/$O$53) -> 166.6666667
Y169: 60S
Y170: 导程1 | Z170: =($E$53-$D$53+2*Z184)*($C$53-1)/$I$53/$O$53 -> 173.3333333 | AA170: sin1 | AB170: =AD170/AF170 -> 0.5244299277 | AC170: 槽高 | AD170: =34*3.14 -> 106.76 | AE170: 斜边长 | AF170: =SQRT(Z171+AD171) -> 203.5734316 | AH170: CL60S | AI170: - | AJ170: =$C$53 -> 7 | AK170: - | AL170: =$D$53 -> 30 | AM170: - | AN170: =$E$53 -> 80 | AO170: - | AP170: =$F$53 -> C | AQ170: =IF($I$53=1,"-","") ->  | AR170: =IF($I$53=1,$K$53,"") ->  | AS170: =IF($I$53=1,"-","") ->  | AT170: =IF($I$53=1,$J$53,"") -> 
Y171: 导程1的平方 | Z171: =Z170^2 -> 30044.44444 | AA171: 导程的平方 | AC171: 槽高平方 | AD171: =AD170^2 -> 11397.6976 | AH171: =CONCATENATE(AH170,AI170,AJ170,AK170,AL170,AM170,AN170,AO170,AP170,AQ170,AR170,AS170,AT170) -> CL60S-7-30-80-C
Y172: 导程2 | Z172: =($E$53-$D$53+2*Z184)*($C$53-1-$I$53)/$I$53/$O$53 -> 115.5555556 | AA172: sin2 | AB172: =AD172/AF172 -> 0.6786003587 | AC172: 槽高 | AD172: =34*3.14 -> 106.76 | AE172: 斜边长 | AF172: =SQRT(Z173+AD173) -> 157.323819
Y173: 导程2的平方 | Z173: =Z172^2 -> 13353.08642 | AA173: 导程的平方 | AC173: 槽高平方 | AD173: =AD172^2 -> 11397.6976
AK174: 重量 | AL174: =IF(AND($F$53="C",$J$53="C"),(AE175*7.8*16.5*16.5*3.14/1000+AE176*3.25+125+100+11.45*C53+67)/1000,AL175) -> 5.586274758
Y175: 理论壁厚 | Z175: =AB172*$D$53-5-4.5 -> 10.85801076 | AD175: 凸轮轴长 | AE175: =Z188 -> 514 | AG175: 销钉孔间距 | AH175: =IF(AE176>=401,200,AH176) -> 200 | AK175: 重量 | AL175: =IF(AND($F$53="C",$J$53="W"),(AE175*7.8*16.5*16.5*3.14/1000+AE176*3.25+125+100+11.45*$C$53+67+64.3)/1000,AL176) -> 5.586274758
Y176: 壁厚留余 | Z176: =IF(AB170>0.766,1,Z177) -> 1.5 | AD176: 型材长 | AE176: =AE175+16 -> 530 | AG176: 销钉孔间距 | AH176: =IF(AE176>=201,150,AH177) -> 150 | AK176: 重量 | AL176: =IF(AND($F$53="L",$J$53="C"),(AE175*7.8*16.5*16.5*3.14/1000+AE176*3.25+125+100+11.45*$C$53+183.5+140)/1000,AL177) -> 0.6128
Y177: 壁厚留余 | Z177: =IF(AB170>0.5,1.5,Z178) -> 1.5 | AD177: 支柱长度 | AE177: =IF(AC189>=0.32,55,50) -> 55 | AG177: 销钉孔间距 | AH177: =IF(AE176>=101,70,50) -> 70 | AK177: 重量 | AL177: =IF(AND($F$53="R",$J$53="C"),(AE175*7.8*16.5*16.5*3.14/1000+AE176*3.25+125+100+11.45*$C$53+183.5+140)/1000,AL178) -> 0.6128
Y178: 壁厚留余 | Z178: =IF(AB170>0.342,2,Z179) -> 2 | AD178: 支柱长度 | AE178: =IF($H$53="S",AE177,45) -> 45 | AG178: 销钉孔间距 | AH178: =VLOOKUP(AG178,AG175:AH177,2,0) -> 200 | AK178: 重量 | AL178: =IF(AND($F$53="H",$J$53="C"),(AE175*7.8*16.5*16.5*3.14/1000+AE176*3.25+125+100+11.45*$C$53+183.5+140)/1000,AL179) -> 0.6128
Y179: 壁厚留余 | Z179: =IF(AB170>0.259,3,Z180) -> 3 | AD179: 总长 | AE179: =IF(AND($F$53="C",$J$53="W"),AE176+23+20+10+AE178,AE180) -> 628 | AG179: ø4 | AH179: =CONCATENATE(AG179,AG180,AH178) -> ø4:200 | AI179: 40 | AK179: 重量 | AL179: =IF(AND($F$53="L",$J$53="W"),(AE175*7.8*16.5*16.5*3.14/1000+AE176*3.25+125+100+11.45*$C$53+183.5+140+64.3)/1000,AL180) -> 0.6128
Y180: 壁厚留余 | Z180: =IF(AB170>0.208,5,#N/A) -> 5 | AD180: 总长 | AE180: =IF(AND($F$53="C",$J$53="C"),AE176+23+10+AE178,AE181) -> 578 | AG180: : | AK180: 重量 | AL180: =IF(AND($F$53="R",$J$53="W"),(AE175*7.8*16.5*16.5*3.14/1000+AE176*3.25+125+100+11.45*$C$53+183.5+140+64.3)/1000,(AC175*7.8*16.5*16.5*3.14/1000+AC176*3.25+125+100+11.19*AB181+11.83*AB180+183.5+140+64.3)/1000) -> 0.6128
Y181: 壁厚留余 | Z181: =VLOOKUP(Y181,Y176:Z180,2,0) -> 1.5 | AD181: 总长 | AE181: =IF(AND($F$53="L",$J$53="W"),AE176+23+20+25,AE182) -> 578 | AK181: 重量 | AL181: =VLOOKUP(AK181,AK174:AL180,2,0) -> 5.586274758
Y182: 理论壁厚 | Z182: =IF(Z181>Z175,#N/A,Z170) -> 173.3333333 | AD182: 总长 | AE182: =IF(AND($F$53="R",$J$53="W"),AE176+23+20+25,AE183) -> 578 | AG182: 螺纹孔 | AH182: M4 | AI182: =IF(AE176>=400,"8",IF(200<AE176<400,"6",IF(AE176<=200,"4"))) -> 8 | AJ182: :
Y183: 不含余量轴长 | Z183: =$E$53*($C$53-1) -> 480 | AD183: 总长 | AE183: =IF(AND($F$53="H",$J$53="W"),AE176+23+20+25,AE176+23+25) -> 578 | AG183: =CONCATENATE(AG182,AJ182,AH182,AJ182,AI182,AJ182,AI179) -> 螺纹孔:M4:8:40
Y184: 留余量 | Z184: =IF(Z183>=301,1,0.5) -> 1 | AB184: 角度力矩 | AC184: =IF(AB170>=0.965,0.1,AC185) -> 0.5 | AD184: 总长 | AE184: =VLOOKUP(AD184,AD179:AE183,2,0) -> 628
Y185: 留余量长度 | Z185: =($C$53-1)*Z184 -> 6 | AB185: 角度力矩 | AC185: =IF(AB170>=0.866,0.16,AC186) -> 0.5 | AD185: 总宽 | AE185: =IF($F$53="C",82,AE186) -> 82
Y186: 最大留余 | Z186: =IF(Z185>=30,30,Z185) -> 6 | AB186: 角度力矩 | AC186: =IF(AB170>=0.707,0.2,0.5) -> 0.5 | AD186: 总宽 | AE186: =IF($F$53="H",82,151) -> 151
Y187: 两侧总留余 | Z187: =IF($D$53>=22.6,28,22) -> 28 | AB187: 角度力矩 | AC187: =VLOOKUP(AB187,AB184:AC186,2,0) -> 0.5 | AD187: 总宽 | AE187: =VLOOKUP(AD187,AD185:AE186,2,0) -> 82
Y188: 轴长 | Z188: =Z183+Z186+Z187 -> 514 | AB188: 静态扭矩 | AC188: 0.25 | AD188: 总高 | AE188: =IF($F$53="H",149,73.5) -> 73.5
Y189: =IF(MOD($C$53,2),"奇数","偶数") -> 奇数 | Z189: =IF(Y189="奇数",($C$53-1)/2,($C$53-1)/2) -> 3 | AB189: 扭矩 | AC189: =0.1*AC187*$G$53*$C$53+AC188 -> 0.6
Y190: 导程 | Z190: =IF($I$53=2,($E$53-$D$53)*Z189/$O$53,($E$53-$D$53)*($C$53-1)/$O$53) -> 166.6666667
Y192: 130F
Y193: 导程1 | Z193: =($E$53-$D$53+2*Z207)*($C$53-1)/$I$53/$O$53 -> 173.3333333 | AA193: sin1 | AB193: =AD193/AF193 -> 0.6233002749 | AC193: 槽高 | AD193: =44*3.14 -> 138.16 | AE193: 斜边长 | AF193: =SQRT(Z194+AD194) -> 221.6588145 | AH193: CL130F | AI193: - | AJ193: =$C$53 -> 7 | AK193: - | AL193: =$D$53 -> 30 | AM193: - | AN193: =$E$53 -> 80 | AO193: - | AP193: =$F$53 -> C | AQ193: =IF($I$53=1,"-","") ->  | AR193: =IF($I$53=1,$K$53,"") ->  | AS193: =IF($I$53=1,"-","") ->  | AT193: =IF($I$53=1,$J$53,"") -> 
Y194: 导程1的平方 | Z194: =Z193^2 -> 30044.44444 | AA194: 导程的平方 | AC194: 槽高平方 | AD194: =AD193^2 -> 19088.1856 | AH194: =CONCATENATE(AH193,AI193,AJ193,AK193,AL193,AM193,AN193,AO193,AP193,AQ193,AR193,AS193,AT193) -> CL130F-7-30-80-C
Y195: 导程2 | Z195: =($E$53-$D$53+2*Z207)*($C$53-1-$I$53)/$I$53/$O$53 -> 115.5555556 | AA195: sin2 | AB195: =AD195/AF195 -> 0.7670671553 | AC195: 槽高 | AD195: =44*3.14 -> 138.16 | AE195: 斜边长 | AF195: =SQRT(Z196+AD196) -> 180.114608
Y196: 导程2的平方 | Z196: =Z195^2 -> 13353.08642 | AA196: 导程的平方 | AC196: 槽高平方 | AD196: =AD195^2 -> 19088.1856
Y198: 理论壁厚 | Z198: =AB195*$D$53-10-5.5 -> 7.51201466 | AB198: 凸轮轴长 | AC198: =Z218 -> 520
Y199: 理论壁厚 | Z199: =IF(Z198<=4.3,Z198+2,Z198) -> 7.51201466 | AB199: 型材长 | AC199: =AC198+10 -> 530
Y200: 理论壁厚 | Z200: =IF(Z199<=3.3,Z199+2,Z199) -> 7.51201466 | AB200: 总长 | AC200: =IF($F$53="C",AC199+85+20,AC199+65+20) -> 635 | AF200: 直线导轨 | AG200: =IF(G1>34.7,"MGNR12",AG201) -> MGNR9 | AI200: 凸轮轴 | AJ200: =22*22*3.14*AC198*7.8/1000/1000 -> 6.16414656
Y201: 理论壁厚 | Z201: =VLOOKUP(Y201,Y199:Z200,2,0) -> 7.51201466 | AB201: 总宽 | AC201: =IF($F$53="C",150,AC202) -> 150 | AF201: 直线导轨 | AG201: =IF(G1>28.9,"MGNR9","MGNR7") -> MGNR9 | AI201: 型材 | AJ201: =9855.48/1304*AC199/1000 -> 4.005678221
Y202: 轴长不加余量 | Z202: =$E$53*($C$53-1) -> 480 | AB202: 总宽 | AC202: =IF($F$53="H",150,239) -> 239 | AF202: 直线导轨 | AG202: =VLOOKUP(AF202,AF200:AG201,2,0) -> MGNR9 | AI202: 固定端 | AJ202: 0.54
Y203: 余量 | Z203: =IF(Z202<=300,"0.5",Z204) -> 1 | AB203: 总宽 | AC203: =VLOOKUP(AB203,AB201:AC202,2,0) -> 150 | AI203: 支撑端 | AJ203: 0.55
Y204: 余量 | Z204: =IF(Z202<=500,"1",Z205) -> 1 | AB204: 总高 | AC204: =IF($F$53="H",220,93) -> 93 | AF204: 销钉孔间距 | AG204: =IF(AC199<=300,100,AG205) -> 200 | AI204: 滑座 | AJ204: =0.336*C55 -> 0
Y205: 余量 | Z205: =IF(Z202<=800,"1.5",Z206) -> 1.5 | AF205: 销钉孔间距 | AG205: =IF(AC199<=600,200,AG206) -> 200 | AI205: 电机直连座 | AJ205: =IF($F$53="C","0.36","0") -> 0.36
Y206: 余量 | Z206: =IF(Z202<=1200,"2","4") -> 2 | AF206: 销钉孔间距 | AG206: =IF(AC199<=800,400,AG207) -> 400 | AI206: 电机折连板 | AJ206: =IF($F$53<>"C","0.6","0") -> 0
Y207: 余量 | Z207: =VLOOKUP(Y207,Y203:Z206,2,0) -> 1 | AF207: 销钉孔间距 | AG207: =IF(AC199<=1000,500,AG208) -> 500 | AI207: 张紧块 | AJ207: =IF($F$53<>"C","0.025","0") -> 0
Y208: 轴长 | Z208: =IF(Z202>=1201,Z202+Z213,Z209) -> 486 | AF208: 销钉孔间距 | AG208: =IF(AC199<=1500,600,AG209) -> 600 | AI208: 前罩 | AJ208: =IF($F$53<>"C","0.0268","0") -> 0
Y209: 轴长 | Z209: =IF(Z202>=801,Z202+Z213,Z210) -> 486 | AF209: 销钉孔间距 | AG209: =IF(AC199<=2000,800,1000) -> 800 | AI209: 电机座盖板 | AJ209: =IF($F$53="C","0.035","0") -> 0.035
Y210: 轴长 | Z210: =IF(Z202>=501,Z202+Z213,Z211) -> 486 | AF210: 销钉孔间距 | AG210: =VLOOKUP(AF210,AF204:AG210,2,0) -> 200 | AI210: 型材盖板 | AJ210: =1698/1314*(AC199+10)/1000 -> 0.6978082192
Y211: 轴长 | Z211: =IF(Z202>=301,Z202+Z213,Z202+Y213) -> 486 | AF211: ø8 | AG211: =CONCATENATE(AF211,AF212,AG210) -> ø8:200 | AI211: 总重 | AJ211: =SUM(AJ200:AJ210) -> 11.957633
... 186 more rows

Sheet sin
A1: 三角函数 | B1: sIN | C1: cos | D1: TAN | E1: 三角函数 | F1: sIN | G1: cos | H1: TAN
A2: o | B2: o | C2: 1 | D2: o | E2: 9o* | F2: 1 | G2: o | H2: 无
A3: 1 | B3: 0.0174 | C3: 0.9998 | D3: 0.0174 | E3: 89* | F3: 0.9998 | G3: 0.0174 | H3: 57.2899
A4: 2 | B4: 0.0348 | C4: 0.9993 | D4: 0.0349 | E4: 88 | F4: 0.9993 | G4: 0.0348 | H4: 28.6362
A5: 3 | B5: 0.0523 | C5: 0.9986 | D5: 0.0524 | E5: 87" | F5: o.9986 | G5: 0.0523 | H5: 19.0811
A6: 4 | B6: o.0697 | C6: o.9975 | D6: o.0699 | E6: 86 | F6: o.9975 | G6: 0.0697 | H6: 14.3006
A7: 5 | B7: o.0871 | C7: o.9961 | D7: 0.0874 | E7: 85* | F7: 0.9961 | G7: o.0871 | H7: 11.43
A8: 6 | B8: o.1045 | C8: o.9945 | D8: 0.1051 | E8: 84 | F8: 0.9945 | G8: 0.1045 | H8: 9.5143
A9: 7 | B9: 0.1218 | C9: o.9925 | D9: 0.1227 | E9: 83 | F9: o.9925 | G9: 0.1218 | H9: 8.1443
A10: 8* | B10: 0.1391 | C10: 0.9902 | D10: 0.1405 | E10: 82* | F10: 0.9902 | G10: 0.1391 | H10: 7.1153
A11: g | B11: 0.1564 | C11: 0.9876 | D11: 0.1583 | E11: 81 | F11: o.9876 | G11: 0.1564 | H11: 6.3137
A12: 10* | B12: 0.1736 | C12: 0.9848 | D12: 0.1763 | E12: 8o* | F12: 0.9848 | G12: 0.1736 | H12: 5.6712
A13: 11 | B13: 0.1908 | C13: 0.9816 | D13: 0.1943 | E13: 79* | F13: 0.9816 | G13: 0.1908 | H13: 5.1445
A14: 12* | B14: 0.2079 | C14: 0.9781 | D14: 0.2125 | E14: 78* | F14: 0.9781 | G14: 0.2079 | H14: 4.7046
A15: 13 | B15: 0.2249 | C15: o.9743 | D15: 0.2308 | E15: 77 | F15: 0.9743 | G15: 0.2249 | H15: 4.3314
A16: 14 | B16: 0.2419 | C16: 0.9702 | D16: 0.2493 | E16: 76 | F16: o.9702 | G16: 0.2419 | H16: 4.0107
A17: 15* | B17: 0.2588 | C17: 0.9659 | D17: 0.2679 | E17: 75 | F17: 0.9659 | G17: 0.2588 | H17: 3.732
A18: 16" | B18: 0.2756 | C18: 0.9612 | D18: 0.2867 | E18: 74 | F18: 0.9612 | G18: 0.2756 | H18: 3.4874
A19: 17 | B19: 0.2923 | C19: 0.9563 | D19: 0.3057 | E19: 73* | F19: 0.9563 | G19: 0.2923 | H19: 3.2708
A20: 18 | B20: 0.309 | C20: 0.951 | D20: 0.3249 | E20: 72* | F20: 0.951 | G20: o.3o9o | H20: 3.0776
A21: 19 | B21: 0.3255 | C21: 0.9455 | D21: 0.3443 | E21: 71 | F21: 0.9455 | G21: 0.3255 | H21: 2.9042
A22: 2o* | B22: 0.342 | C22: 0.9396 | D22: 0.3639 | E22: 7o | F22: 0.9396 | G22: 0.342 | H22: 2.7474
A23: 21 | B23: 0.3583 | C23: 0.9335 | D23: 0.3838 | E23: 69" | F23: 0.9335 | G23: 0.3583 | H23: 2.605
A24: 22' | B24: 0.3746 | C24: 0.9271 | D24: 0.404 | E24: 68 | F24: 0.9271 | G24: 0.3746 | H24: 2.475
A25: 23 | B25: 0.3907 | C25: 0.9205 | D25: 0.4244 | E25: 67 | F25: 0.9205 | G25: 0.3907 | H25: 2.3558
A26: 24 | B26: 0.4067 | C26: 0.9135 | D26: 0.4452 | E26: 66* | F26: 0.9135 | G26: 0.4067 | H26: 2.246
A27: 25* | B27: 0.4226 | C27: 0.9063 | D27: 0.4663 | E27: 65* | F27: 0.9063 | G27: 0.4226 | H27: 2.1445
A28: 26* | B28: 0.4383 | C28: o.8987 | D28: 0.4877 | E28: 64 | F28: 0.8987 | G28: 0.4383 | H28: 2.0503
A29: 27 | B29: 0.4539 | C29: 0.891 | D29: 0.5095 | E29: 63" | F29: o.8910 | G29: 0.4539 | H29: 1.9626
A30: 28 | B30: 0.4694 | C30: o.8829 | D30: 0.5317 | E30: 62* | F30: o.8829 | G30: 0.4694 | H30: 1.8807
A31: 29 | B31: 0.4848 | C31: o.8746 | D31: 0.5543 | E31: 61 | F31: 0.8746 | G31: 0.4848 | H31: 1.804
A32: 3o | B32: 0.5 | C32: 0.866 | D32: 0.5773 | E32: 6o* | F32: o.8660 | G32: 0.5 | H32: 1.732
A33: 31 | B33: 0.515 | C33: 0.8571 | D33: 0.6008 | E33: 59" | F33: 0.8571 | G33: 0.515 | H33: 1.6642
A34: 32* | B34: 0.5299 | C34: 0.848 | D34: 0.6248 | E34: 58 | F34: 0.848 | G34: 0.5299 | H34: 1.6003
A35: 33 | B35: 0.5446 | C35: 0.8386 | D35: 0.6494 | E35: 57" | F35: 0.8386 | G35: 0.5446 | H35: 1.5398
A36: 34 | B36: 0.5591 | C36: 0.829 | D36: 0.6745 | E36: 56* | F36: 0.829 | G36: 0.5591 | H36: 1.4825
A37: 35 | B37: 0.5735 | C37: 0.8191 | D37: 0.7002 | E37: 55* | F37: 0.8191 | G37: 0.5735 | H37: 1.4281

Sheet Sheet3
C1: 螺纹孔 | G1: 销钉孔
B2: ： | C2: 大小 | D2: 数量 | E2: X间距 | F2: Y间距 | G2: 大小 | H2: 数量 | I2: Y间距
A3: =CONCATENATE(C3,$B$2,D3,$B$2,E3,$B$2,F3) -> M3：2：8：25 | B3: CL40-03M-D5C-M3-00 | C3: M3 | D3: 2 | E3: 8 | F3: 25 | G3: M3 | H3: 2 | I3: 25 | J3: =CONCATENATE(G3,$B$2,H3,$B$2,I3) -> M3：2：25
A4: M3：2：/：19 | B4: CL60-03M-S5C-M3-00 | C4: M3 | D4: 2 | E4: / | F4: 19 | G4: M3 | H4: 2 | I4: 46 | J4: =CONCATENATE(G4,$B$2,H4,$B$2,I4) -> M3：2：46
A5: M3：2：8：44 | B5: CL60-03M-D5C-M3-00 | C5: M3 | D5: 2 | E5: 8 | F5: 44 | G5: M4 | H5: 2 | I5: 44 | J5: M4：2：44
A6: M3：4：16：36 | B6: CL60-03M-D7C-M3-00 | C6: M3 | D6: 4 | E6: 16 | F6: 36 | G6: M4 | H6: 2 | I6: 36 | J6: M4：2：36
A7: M3：2：/：19 | B7: CL60S-03M-S5C-M3-00 | C7: M3 | D7: 2 | E7: / | F7: 19 | G7: M3 | H7: 2 | I7: 46 | J7: M3：2：46
A8: M4：4：14：84 | B8: CL80F-03M-D7C-M3-01 | C8: M4 | D8: 4 | E8: 14 | F8: 84 | G8: M4 | H8: 2 | I8: 84 | J8: M4：2：84
A9: =CONCATENATE(C9,$B$2,D9,$B$2,E9,$B$2,F9) -> M4：4：20：84 | B9: CL80F-03M-D9C-M5-01 | C9: M4 | D9: 4 | E9: 20 | F9: 84 | G9: M5 | H9: 2 | I9: 84 | J9: M5：2：84
A10: M4：4：24：84 | B10: CL80F-03M-D9HC-M4-01 | C10: M4 | D10: 4 | E10: 24 | F10: 84 | G10: M5 | H10: 2 | I10: 84 | J10: =CONCATENATE(G10,$B$2,H10,$B$2,I10) -> M5：2：84
A11: M5：4：20：60 | B11: CL80S-03M-D15C-M4-01 | C11: M5 | D11: 4 | E11: 20 | F11: 60 | G11: M6 | H11: 2 | I11: 50 | J11: M6：2：50
A12: M5：4：50：60 | B12: CL80S-03M-D15HW-M4-01 | C12: M5 | D12: 4 | E12: 50 | F12: 60 | G12: M6 | H12: 2 | I12: 50 | J12: M6：2：50
A13: M5：2：/：62 | B13: CL80-03M-S7C-M4-00 | C13: M5 | D13: 2 | E13: / | F13: 62 | G13: M4 | H13: 2 | I13: 25 | J13: M4：2：25
A14: M5：2：/：56 | B14: CL80-03M-D7C-M3-00 | C14: M5 | D14: 2 | E14: / | F14: 56 | G14: M4 | H14: 2 | I14: 50 | J14: M4：2：50
A15: M4：4：20：52 | B15: CL80-03M-D9C-M4-00 | C15: M4 | D15: 4 | E15: 20 | F15: 52 | G15: M4 | H15: 2 | I15: 52 | J15: M4：2：52
A16: M4：2：14：125 | B16: CL130F-03M-D7C-M4-03 | C16: M4 | D16: 2 | E16: 14 | F16: 125 | G16: M4 | H16: 2 | I16: 125 | J16: M4：2：125
A17: M4：2：15：125 | B17: CL130F-03M-D9C-M4-03 | C17: M4 | D17: 2 | E17: 15 | F17: 125 | G17: M4 | H17: 2 | I17: 125 | J17: M4：2：125
A18: M4：2：28：125 | B18: CL130F-03M-D9HC-M4-03 | C18: M4 | D18: 2 | E18: 28 | F18: 125 | G18: M4 | H18: 2 | I18: 125 | J18: M4：2：125
A19: =CONCATENATE(C19,$B$2,D19,$B$2,E19,$B$2,F19) -> M4：2：20：125 | B19: CL130F-03M-D12C-M4-03 | C19: M4 | D19: 2 | E19: 20 | F19: 125 | G19: M4 | H19: 2 | I19: 125 | J19: M4：2：125
A20: M4：2：28：125 | B20: CL130F-03M-D12HC-M4-03 | C20: M4 | D20: 2 | E20: 28 | F20: 125 | G20: M4 | H20: 2 | I20: 125 | J20: =CONCATENATE(G20,$B$2,H20,$B$2,I20) -> M4：2：125
A21: M5：2：16：185 | B21: CL175F-03M-D9C-M4-02 | C21: M5 | D21: 2 | E21: 16 | F21: 185 | G21: M5 | H21: 2 | I21: 185 | J21: M5：2：185
A22: M5：2：24：185 | B22: CL175F-03M-D9HC-M4-02 | C22: M5 | D22: 2 | E22: 24 | F22: 185 | G22: M5 | H22: 2 | I22: 185 | J22: M5：2：185
A23: M5：2：22：185 | B23: CL175F-03M-D12C-M5-02 | C23: M5 | D23: 2 | E23: 22 | F23: 185 | G23: M5 | H23: 2 | I23: 185 | J23: M5：2：185
A24: M5：2：34：185 | B24: CL175F-03M-D12HC-M4-02 | C24: M5 | D24: 2 | E24: 34 | F24: 185 | G24: M5 | H24: 2 | I24: 185 | J24: M5：2：185
A25: M6：2：32：185 | B25: CL175F-03M-D15C-M4-02 | C25: M6 | D25: 2 | E25: 32 | F25: 185 | G25: M6 | H25: 2 | I25: 185 | J25: M6：2：185
A26: M6：2：48：185 | B26: CL175F-03M-D15HC-M4-02 | C26: M6 | D26: 2 | E26: 48 | F26: 185 | G26: M6 | H26: 2 | I26: 185 | J26: M6：2：185
A27: M6：2：32：215 | B27: CL230F-03M-D15C-M4-01 | C27: M6 | D27: 2 | E27: 32 | F27: 215 | G27: M6 | H27: 2 | I27: 215 | J27: M6：2：215
A28: M6：2：48：215 | B28: CL230F-03M-D15HC-M5-01 | C28: M6 | D28: 2 | E28: 48 | F28: 215 | G28: M6 | H28: 2 | I28: 215 | J28: M6：2：215
